Workbook

Sheet 説明
A1: このEXCEL.xlsmは、名簿を管理するための簡易なアプリです。
B3: 会員の追加変更は、「会員」シートで行ってください。
C4: 新規加入者は、黒いボタン「最終行表示」を押して、次に、黒いボタン「行追加」を押してください。
D5: 途中の行で、右クリックで追加も可能です。
C6: 変更は、班、姓、名、住所などで抽出してメンテして、そのあと、上書き保存（Ctrl + S )を、忘れないように行ってください。
C7: 退会は、黒いボタン「退会登録」をクリック、赤い色の項目をメンテください。
C8: 役職登録は、黒いボタン「役職登録」をクリック、赤い色の項目をメンテください。
D9: 上段に赤い全クリアボタンがあります。年度替わりのときなどに利用ください。
C10: 管理表順登録は、任意に並び変えたいときに順位を登録します。
B12: 基礎情報は、班名、年号、役職です。各シートをメンテください。
B14: 市区名、字名の変更などは、一斉に行えます。
B15: 西暦年と月を指定して、年齢を表示します。
B16: 書類の形式として３タイプあります。
B18: ＜１＞ | C18: 総会方式用～全世帯を対象に、世帯員名を印刷した書類の作成用です。ここでは、総会書類作成としてありますが、
C19: 「総会文面」シートの内容を、カメラで、「総会書類作成」シートへ表示しているだけです。
C20: 書類の内容、シート名は任意に変えてください。
C21: 但し、シートに列を追加削除するとエラーが生じます。
B23: ＜２＞ | C23: 委員会方式用～役職の中から出席を要請する役職を指定して書類を作成します。ここでは委員会書類としてありますが、
C24: 印刷する書類の文面は任意ですので、目的の会合に当てはめて、読み替えて、使ってください。
C25: 対象者の住所氏名を、左上に表示しますので、窓付き封筒が使えます。
C26: 但し、シートに列を追加削除するとエラーが生じます。
B28: ＜３＞ | C28: 任意作成用～対象者を任意に選択し、共通の文書を作成します。
C29: 対象者の住所氏名を、左上に表示しますので、窓付き封筒が使えます。
C30: 但し、シートに列を追加削除するとエラーが生じます。
B32: 便利な使い方
C33: 会員シートのデータは、任意の範囲を、別のシートにコピー(Ctrl + C )＆ペースト(Ctrl + V )できます。
C34: 班、年齢、役職、それらの範囲、で抽出表示したものを、そのまま、別のシートにコピー(Ctrl + C )＆ペースト(Ctrl + V )できます。
B36: 注意点
C37: 列の追加、項目名の変更は行わないでください。 | J37: →エラーとなった場合の対処方法はこちらを参考にしてください。 | P37: https://youtu.be/LKB11VYQ1lU
D38: 列を追加削除すると、総会書類作成の項目の位置がおかしくなります。
B39: 以上

Sheet 会員
R1: 年齢の算出基準（西暦年）↓ | S1: （月末時点）↓ | Z1: 世帯名簿の災害弱者に○をつけた人↓ | AA1: 施設入所中 障害内容 訃報に関する情報ほか | AB1: 携帯電話番号ほか | AC1: 要支援者として市区に登録した人↓ | AE1: 世帯名簿が一人の人↓ | AJ1: 役員用の追加情報 メールアドレスなど | AK1: 「委員会」となっていますが、別名に読み替えて利用ください↓ | AL1: 字名入力↓ | AQ1: 市区名入力↓ | AR1: 〒初期値↓
A2: ↓全列にわたり項目名は変更しないでください。 | G2: 使い方説明↑ | R2: 2023 | S2: 3 | AF2: ↓ | AG2: ↓ | AH2: ↓ | AI2: ↓ | AL2: 山田村 | AQ2: 鈴木市佐藤区 | AR2: 〒987-6543
A3: 会員SORT | B3: 班名SORT | C3: 班 | D3: 班内G | E3: 退会理由 | F3: 姓 | G3: 名 | H3: よみがな | I3: 世帯主Y | J3: 世帯員No | K3: 住所1 | L3: 住所2 | M3: 住所3 | N3: 電話 | O3: 性別 | P3: 生年和暦 | Q3: 生月 | R3: 生年西暦 | S3: 年齢 | T3: 入会年和暦 | U3: 入会月 | V3: 入会年西暦 | W3: 退会年和暦 | X3: 退会月 | Y3: 退会年西暦 | Z3: 災害弱者 | AA3: 備考1 | AB3: 備考2 | AC3: 要支援登録者 | AD3: 要支援者番号 | AE3: 独居者 | AF3: 会費管理表順 | AG3: 役職１ | AH3: 役職2 | AI3: 役職3 | AJ3: 追記 | AK3: 委員会要出 | AL3: 補助情報_連結住所 | AM3: 補助情報_連結氏名 | AN3: 委員会判定1 | AO3: 委員会判定2 | AP3: 委員会判定3 | AQ3: 市区名 | AR3: 郵便番号 | AS3: 補助役職連記 | AT3: 任意抽出Y
A4: =ROW()-ROW(会員テーブル[[#Headers],[会員SORT]]) -> 1 | B4: =IFERROR(VLOOKUP(C4,班名テーブル[],2,FALSE),"") -> 1 | C4: [1] | F4: 井永 | G4: 省三郎 | H4: いなが | I4: Y | J4: 1 | K4: 107 | N4: 999-685-0891 | O4: 男 | P4: 昭和24 | Q4: 1 | R4: =IFERROR(VLOOKUP(P4,年号テーブル[],2,FALSE),"") -> 1949 | S4: =IFERROR(IF((nenreim-Q4)<0,(nenreiy-R4)-1,(nenreiy-R4)),"") -> 74 | V4: =IFERROR(VLOOKUP(T4,nengou2,2,FALSE),"") ->  | Y4: =IFERROR(VLOOKUP(W4,nengou2,2,FALSE),"") ->  | AK4: =IF((AN4+AO4+AP4)>0,"出","") ->  | AL4: =IF(会員テーブル[[#This Row],[住所1]]="",会員テーブル[[#This Row],[住所3]],IF(会員テーブル[[#This Row],[住所2]]="",字名&会員テーブル[[#This Row],[住所1]]&会員テーブル[[#This Row],[住所3]],字名&会員テーブル[[#This Row],[住所1]]&"-"&会員テーブル[[#This Row],[住所2]]&会員テーブル[[#This Row],[住所3]])) -> 山田村107 | AM4: =会員テーブル[[#This Row],[姓]]&" "&会員テーブル[[#This Row],[名]] -> 井永 省三郎 | AN4: =IFERROR(IF((VLOOKUP(会員テーブル[[#This Row],[役職１]],役職テーブル[],3,FALSE)="出"),1,0),0) -> 0 | AO4: =IFERROR(IF((VLOOKUP(会員テーブル[[#This Row],[役職2]],役職テーブル[],3,FALSE)="出"),1,0),0) -> 0 | AP4: =IFERROR(IF((VLOOKUP(会員テーブル[[#This Row],[役職3]],役職テーブル[],3,FALSE)="出"),1,0),0) -> 0 | AQ4: =市区名 -> 鈴木市佐藤区 | AR4: =郵便初期値 -> 〒987-6543 | AS4: =会員テーブル[[#This Row],[役職１]]&" "&会員テーブル[[#This Row],[役職2]]&" "&会員テーブル[[#This Row],[役職3]] -> 
A5: =ROW()-ROW(会員テーブル[[#Headers],[会員SORT]]) -> 2 | B5: =IFERROR(VLOOKUP(C5,班名テーブル[],2,FALSE),"") -> 1 | C5: [1] | F5: 井永 | G5: 明枝 | H5: いなが | J5: 2 | K5: 107 | N5: 999-685-0891 | O5: 女 | P5: 昭和28 | Q5: 2 | R5: =IFERROR(VLOOKUP(P5,年号テーブル[],2,FALSE),"") -> 1953 | S5: 70 | Y5: =IFERROR(VLOOKUP(W5,nengou2,2,FALSE),"") ->  | AF5: 12 | AG5: 自治会副会長(書記) | AK5: 出 | AL5: =IF(会員テーブル[[#This Row],[住所1]]="",会員テーブル[[#This Row],[住所3]],IF(会員テーブル[[#This Row],[住所2]]="",字名&会員テーブル[[#This Row],[住所1]]&会員テーブル[[#This Row],[住所3]],字名&会員テーブル[[#This Row],[住所1]]&"-"&会員テーブル[[#This Row],[住所2]]&会員テーブル[[#This Row],[住所3]])) -> 山田村107 | AM5: =会員テーブル[[#This Row],[姓]]&" "&会員テーブル[[#This Row],[名]] -> 井永 明枝 | AN5: =IFERROR(IF((VLOOKUP(会員テーブル[[#This Row],[役職１]],役職テーブル[],3,FALSE)="出"),1,0),0) -> 1 | AO5: =IFERROR(IF((VLOOKUP(会員テーブル[[#This Row],[役職2]],役職テーブル[],3,FALSE)="出"),1,0),0) -> 0 | AP5: =IFERROR(IF((VLOOKUP(会員テーブル[[#This Row],[役職3]],役職テーブル[],3,FALSE)="出"),1,0),0) -> 0 | AQ5: 鈴木市佐藤区 | AR5: 〒987-6543 | AS5: =会員テーブル[[#This Row],[役職１]]&" "&会員テーブル[[#This Row],[役職2]]&" "&会員テーブル[[#This Row],[役職3]] -> 自治会副会長(書記) | AT5: Y
A6: =ROW()-ROW(会員テーブル[[#Headers],[会員SORT]]) -> 3 | B6: =IFERROR(VLOOKUP(C6,班名テーブル[],2,FALSE),"") -> 1 | C6: [1] | E6: 転居 | F6: 野平 | G6: かづ子 | H6: のひら | I6: Y | J6: 1 | K6: 1010 | L6: 5 | N6: 999-685-3095 | O6: 女 | P6: 昭和12 | Q6: 3 | R6: =IFERROR(VLOOKUP(P6,年号テーブル[],2,FALSE),"") -> 1937 | S6: 86 | W6: 令和3 | X6: 12 | Y6: =VLOOKUP(W6,nengou2,2,FALSE) -> 2021 | AA6: 腰足歩行困難 | AF6: 3 | AL6: =IF(会員テーブル[[#This Row],[住所1]]="",会員テーブル[[#This Row],[住所3]],IF(会員テーブル[[#This Row],[住所2]]="",字名&会員テーブル[[#This Row],[住所1]]&会員テーブル[[#This Row],[住所3]],字名&会員テーブル[[#This Row],[住所1]]&"-"&会員テーブル[[#This Row],[住所2]]&会員テーブル[[#This Row],[住所3]])) -> 山田村1010-5 | AM6: =会員テーブル[[#This Row],[姓]]&" "&会員テーブル[[#This Row],[名]] -> 野平 かづ子 | AN6: =IFERROR(IF((VLOOKUP(会員テーブル[[#This Row],[役職１]],役職テーブル[],3,FALSE)="出"),1,0),0) -> 0 | AO6: =IFERROR(IF((VLOOKUP(会員テーブル[[#This Row],[役職2]],役職テーブル[],3,FALSE)="出"),1,0),0) -> 0 | AP6: =IFERROR(IF((VLOOKUP(会員テーブル[[#This Row],[役職3]],役職テーブル[],3,FALSE)="出"),1,0),0) -> 0 | AQ6: 鈴木市佐藤区 | AR6: 〒987-6543 | AS6: =会員テーブル[[#This Row],[役職１]]&" "&会員テーブル[[#This Row],[役職2]]&" "&会員テーブル[[#This Row],[役職3]] -> 
A7: =ROW()-ROW(会員テーブル[[#Headers],[会員SORT]]) -> 4 | B7: =IFERROR(VLOOKUP(C7,班名テーブル[],2,FALSE),"") -> 1 | C7: [1] | E7: 転居 | F7: 野平 | G7: 公子 | H7: のひら | J7: 1 | K7: 1010 | L7: 5 | N7: 999-685-3095 | O7: 女 | P7: 昭和34 | Q7: 4 | R7: =IFERROR(VLOOKUP(P7,年号テーブル[],2,FALSE),"") -> 1959 | S7: 63 | W7: 令和3 | X7: 12 | Y7: =VLOOKUP(W7,nengou2,2,FALSE) -> 2021 | AF7: 4 | AL7: =IF(会員テーブル[[#This Row],[住所1]]="",会員テーブル[[#This Row],[住所3]],IF(会員テーブル[[#This Row],[住所2]]="",字名&会員テーブル[[#This Row],[住所1]]&会員テーブル[[#This Row],[住所3]],字名&会員テーブル[[#This Row],[住所1]]&"-"&会員テーブル[[#This Row],[住所2]]&会員テーブル[[#This Row],[住所3]])) -> 山田村1010-5 | AM7: =会員テーブル[[#This Row],[姓]]&" "&会員テーブル[[#This Row],[名]] -> 野平 公子 | AN7: =IFERROR(IF((VLOOKUP(会員テーブル[[#This Row],[役職１]],役職テーブル[],3,FALSE)="出"),1,0),0) -> 0 | AO7: =IFERROR(IF((VLOOKUP(会員テーブル[[#This Row],[役職2]],役職テーブル[],3,FALSE)="出"),1,0),0) -> 0 | AP7: =IFERROR(IF((VLOOKUP(会員テーブル[[#This Row],[役職3]],役職テーブル[],3,FALSE)="出"),1,0),0) -> 0 | AQ7: 鈴木市佐藤区 | AR7: 〒987-6543 | AS7: =会員テーブル[[#This Row],[役職１]]&" "&会員テーブル[[#This Row],[役職2]]&" "&会員テーブル[[#This Row],[役職3]] -> 
A8: =ROW()-ROW(会員テーブル[[#Headers],[会員SORT]]) -> 5 | B8: =IFERROR(VLOOKUP(C8,班名テーブル[],2,FALSE),"") -> 1 | C8: [1] | F8: 井永 | G8: 幸次 | H8: いなが ゆきじ | I8: Y | J8: 1 | K8: 1018 | N8: 999-785-7207 | O8: 男 | P8: 昭和25 | Q8: 5 | R8: =IFERROR(VLOOKUP(P8,年号テーブル[],2,FALSE),"") -> 1950 | S8: 72 | Y8: =IFERROR(VLOOKUP(W8,nengou2,2,FALSE),"") ->  | AF8: 5 | AG8: ブロック長 | AK8: 出 | AL8: =IF(会員テーブル[[#This Row],[住所1]]="",会員テーブル[[#This Row],[住所3]],IF(会員テーブル[[#This Row],[住所2]]="",字名&会員テーブル[[#This Row],[住所1]]&会員テーブル[[#This Row],[住所3]],字名&会員テーブル[[#This Row],[住所1]]&"-"&会員テーブル[[#This Row],[住所2]]&会員テーブル[[#This Row],[住所3]])) -> 山田村1018 | AM8: =会員テーブル[[#This Row],[姓]]&" "&会員テーブル[[#This Row],[名]] -> 井永 幸次 | AN8: =IFERROR(IF((VLOOKUP(会員テーブル[[#This Row],[役職１]],役職テーブル[],3,FALSE)="出"),1,0),0) -> 1 | AO8: =IFERROR(IF((VLOOKUP(会員テーブル[[#This Row],[役職2]],役職テーブル[],3,FALSE)="出"),1,0),0) -> 0 | AP8: =IFERROR(IF((VLOOKUP(会員テーブル[[#This Row],[役職3]],役職テーブル[],3,FALSE)="出"),1,0),0) -> 0 | AQ8: 鈴木市佐藤区 | AR8: 〒987-6543 | AS8: =会員テーブル[[#This Row],[役職１]]&" "&会員テーブル[[#This Row],[役職2]]&" "&会員テーブル[[#This Row],[役職3]] -> ブロック長
A9: =ROW()-ROW(会員テーブル[[#Headers],[会員SORT]]) -> 6 | B9: =IFERROR(VLOOKUP(C9,班名テーブル[],2,FALSE),"") -> 1 | C9: [1] | F9: 子兼 | G9: 隆保 | H9: こかね たかやす | I9: Y | J9: 1 | K9: 1020 | L9: 2 | N9: 999-1111-8871 | O9: 男 | P9: 昭和42 | Q9: 6 | R9: =IFERROR(VLOOKUP(P9,年号テーブル[],2,FALSE),"") -> 1967 | S9: 55 | Z9: 災害弱者 | AE9: 独居者 | AF9: 6 | AI9: ブロック長 | AK9: 出 | AL9: =IF(会員テーブル[[#This Row],[住所1]]="",会員テーブル[[#This Row],[住所3]],IF(会員テーブル[[#This Row],[住所2]]="",字名&会員テーブル[[#This Row],[住所1]]&会員テーブル[[#This Row],[住所3]],字名&会員テーブル[[#This Row],[住所1]]&"-"&会員テーブル[[#This Row],[住所2]]&会員テーブル[[#This Row],[住所3]])) -> 山田村1020-2 | AM9: =会員テーブル[[#This Row],[姓]]&" "&会員テーブル[[#This Row],[名]] -> 子兼 隆保 | AN9: =IFERROR(IF((VLOOKUP(会員テーブル[[#This Row],[役職１]],役職テーブル[],3,FALSE)="出"),1,0),0) -> 0 | AO9: =IFERROR(IF((VLOOKUP(会員テーブル[[#This Row],[役職2]],役職テーブル[],3,FALSE)="出"),1,0),0) -> 0 | AP9: =IFERROR(IF((VLOOKUP(会員テーブル[[#This Row],[役職3]],役職テーブル[],3,FALSE)="出"),1,0),0) -> 1 | AQ9: 鈴木市佐藤区 | AR9: 〒987-6543 | AS9: =会員テーブル[[#This Row],[役職１]]&" "&会員テーブル[[#This Row],[役職2]]&" "&会員テーブル[[#This Row],[役職3]] -> ブロック長 | AT9: Y
A10: =ROW()-ROW(会員テーブル[[#Headers],[会員SORT]]) -> 7 | B10: =IFERROR(VLOOKUP(C10,班名テーブル[],2,FALSE),"") -> 2 | C10: [2-1] | F10: 経度 | G10: 次郎 | H10: けいど じろう | I10: Y | J10: 1 | K10: 333 | L10: 33 | N10: 333-333-3333 | O10: 男 | P10: 昭和63 | Q10: 1 | R10: =IFERROR(VLOOKUP(P10,年号テーブル[],2,FALSE),"") -> 1988 | S10: 35 | AF10: 7 | AL10: =IF(会員テーブル[[#This Row],[住所1]]="",会員テーブル[[#This Row],[住所3]],IF(会員テーブル[[#This Row],[住所2]]="",字名&会員テーブル[[#This Row],[住所1]]&会員テーブル[[#This Row],[住所3]],字名&会員テーブル[[#This Row],[住所1]]&"-"&会員テーブル[[#This Row],[住所2]]&会員テーブル[[#This Row],[住所3]])) -> 山田村333-33 | AM10: =会員テーブル[[#This Row],[姓]]&" "&会員テーブル[[#This Row],[名]] -> 経度 次郎 | AN10: =IFERROR(IF((VLOOKUP(会員テーブル[[#This Row],[役職１]],役職テーブル[],3,FALSE)="出"),1,0),0) -> 0 | AO10: =IFERROR(IF((VLOOKUP(会員テーブル[[#This Row],[役職2]],役職テーブル[],3,FALSE)="出"),1,0),0) -> 0 | AP10: =IFERROR(IF((VLOOKUP(会員テーブル[[#This Row],[役職3]],役職テーブル[],3,FALSE)="出"),1,0),0) -> 0 | AQ10: 鈴木市佐藤区 | AR10: 〒987-6543 | AS10: =会員テーブル[[#This Row],[役職１]]&" "&会員テーブル[[#This Row],[役職2]]&" "&会員テーブル[[#This Row],[役職3]] -> 
A11: =ROW()-ROW(会員テーブル[[#Headers],[会員SORT]]) -> 8 | B11: =IFERROR(VLOOKUP(C11,班名テーブル[],2,FALSE),"") -> 2 | C11: [2-1] | F11: 井永 | G11: 京子 | H11: いなが | I11: Y | J11: 1 | K11: 1018 | N11: 999-785-7207 | O11: 女 | P11: 昭和26 | Q11: 7 | R11: =IFERROR(VLOOKUP(P11,年号テーブル[],2,FALSE),"") -> 1951 | S11: 71 | AF11: 8 | AL11: =IF(会員テーブル[[#This Row],[住所1]]="",会員テーブル[[#This Row],[住所3]],IF(会員テーブル[[#This Row],[住所2]]="",字名&会員テーブル[[#This Row],[住所1]]&会員テーブル[[#This Row],[住所3]],字名&会員テーブル[[#This Row],[住所1]]&"-"&会員テーブル[[#This Row],[住所2]]&会員テーブル[[#This Row],[住所3]])) -> 山田村1018 | AM11: =会員テーブル[[#This Row],[姓]]&" "&会員テーブル[[#This Row],[名]] -> 井永 京子 | AN11: =IFERROR(IF((VLOOKUP(会員テーブル[[#This Row],[役職１]],役職テーブル[],3,FALSE)="出"),1,0),0) -> 0 | AO11: =IFERROR(IF((VLOOKUP(会員テーブル[[#This Row],[役職2]],役職テーブル[],3,FALSE)="出"),1,0),0) -> 0 | AP11: =IFERROR(IF((VLOOKUP(会員テーブル[[#This Row],[役職3]],役職テーブル[],3,FALSE)="出"),1,0),0) -> 0 | AQ11: 鈴木市佐藤区 | AR11: 〒987-6543 | AS11: =会員テーブル[[#This Row],[役職１]]&" "&会員テーブル[[#This Row],[役職2]]&" "&会員テーブル[[#This Row],[役職3]] -> 
A12: =ROW()-ROW(会員テーブル[[#Headers],[会員SORT]]) -> 9 | B12: =IFERROR(VLOOKUP(C12,班名テーブル[],2,FALSE),"") -> 2 | C12: [2-1] | F12: 井永 | G12: 和広 | H12: いなが | J12: 2 | K12: 1018 | N12: 999-785-7207 | O12: 男 | P12: 昭和43 | Q12: 8 | R12: =IFERROR(VLOOKUP(P12,年号テーブル[],2,FALSE),"") -> 1968 | S12: 54 | AF12: 9 | AH12: 班長 | AL12: =IF(会員テーブル[[#This Row],[住所1]]="",会員テーブル[[#This Row],[住所3]],IF(会員テーブル[[#This Row],[住所2]]="",字名&会員テーブル[[#This Row],[住所1]]&会員テーブル[[#This Row],[住所3]],字名&会員テーブル[[#This Row],[住所1]]&"-"&会員テーブル[[#This Row],[住所2]]&会員テーブル[[#This Row],[住所3]])) -> 山田村1018 | AM12: =会員テーブル[[#This Row],[姓]]&" "&会員テーブル[[#This Row],[名]] -> 井永 和広 | AN12: =IFERROR(IF((VLOOKUP(会員テーブル[[#This Row],[役職１]],役職テーブル[],3,FALSE)="出"),1,0),0) -> 0 | AO12: =IFERROR(IF((VLOOKUP(会員テーブル[[#This Row],[役職2]],役職テーブル[],3,FALSE)="出"),1,0),0) -> 0 | AP12: =IFERROR(IF((VLOOKUP(会員テーブル[[#This Row],[役職3]],役職テーブル[],3,FALSE)="出"),1,0),0) -> 0 | AQ12: 鈴木市佐藤区 | AR12: 〒987-6543 | AS12: =会員テーブル[[#This Row],[役職１]]&" "&会員テーブル[[#This Row],[役職2]]&" "&会員テーブル[[#This Row],[役職3]] -> 班長
A13: =ROW()-ROW(会員テーブル[[#Headers],[会員SORT]]) -> 10 | B13: =IFERROR(VLOOKUP(C13,班名テーブル[],2,FALSE),"") -> 2 | C13: [2-1] | F13: 井永 | G13: 友子 | H13: いなが | J13: 3 | K13: 1018 | N13: 999-785-7207 | O13: 女 | P13: 昭和56 | Q13: 9 | R13: =IFERROR(VLOOKUP(P13,年号テーブル[],2,FALSE),"") -> 1981 | S13: 41 | AL13: =IF(会員テーブル[[#This Row],[住所1]]="",会員テーブル[[#This Row],[住所3]],IF(会員テーブル[[#This Row],[住所2]]="",字名&会員テーブル[[#This Row],[住所1]]&会員テーブル[[#This Row],[住所3]],字名&会員テーブル[[#This Row],[住所1]]&"-"&会員テーブル[[#This Row],[住所2]]&会員テーブル[[#This Row],[住所3]])) -> 山田村1018 | AM13: =会員テーブル[[#This Row],[姓]]&" "&会員テーブル[[#This Row],[名]] -> 井永 友子 | AN13: =IFERROR(IF((VLOOKUP(会員テーブル[[#This Row],[役職１]],役職テーブル[],3,FALSE)="出"),1,0),0) -> 0 | AO13: =IFERROR(IF((VLOOKUP(会員テーブル[[#This Row],[役職2]],役職テーブル[],3,FALSE)="出"),1,0),0) -> 0 | AP13: =IFERROR(IF((VLOOKUP(会員テーブル[[#This Row],[役職3]],役職テーブル[],3,FALSE)="出"),1,0),0) -> 0 | AQ13: 鈴木市佐藤区 | AR13: 〒987-6543 | AS13: =会員テーブル[[#This Row],[役職１]]&" "&会員テーブル[[#This Row],[役職2]]&" "&会員テーブル[[#This Row],[役職3]] -> 
A14: =ROW()-ROW(会員テーブル[[#Headers],[会員SORT]]) -> 11 | B14: =IFERROR(VLOOKUP(C14,班名テーブル[],2,FALSE),"") -> 2 | C14: [2-1] | E14: 転居 | F14: 井永 | G14: 多生 | H14: いなが | J14: 5 | K14: 1018 | N14: 999-785-7207 | O14: 女 | P14: 平成30 | Q14: 10 | R14: =IFERROR(VLOOKUP(P14,年号テーブル[],2,FALSE),"") -> 2018 | S14: 4 | W14: 令和4 | X14: 11 | Y14: 2022 | AL14: =IF(会員テーブル[[#This Row],[住所1]]="",会員テーブル[[#This Row],[住所3]],IF(会員テーブル[[#This Row],[住所2]]="",字名&会員テーブル[[#This Row],[住所1]]&会員テーブル[[#This Row],[住所3]],字名&会員テーブル[[#This Row],[住所1]]&"-"&会員テーブル[[#This Row],[住所2]]&会員テーブル[[#This Row],[住所3]])) -> 山田村1018 | AM14: =会員テーブル[[#This Row],[姓]]&" "&会員テーブル[[#This Row],[名]] -> 井永 多生 | AN14: =IFERROR(IF((VLOOKUP(会員テーブル[[#This Row],[役職１]],役職テーブル[],3,FALSE)="出"),1,0),0) -> 0 | AO14: =IFERROR(IF((VLOOKUP(会員テーブル[[#This Row],[役職2]],役職テーブル[],3,FALSE)="出"),1,0),0) -> 0 | AP14: =IFERROR(IF((VLOOKUP(会員テーブル[[#This Row],[役職3]],役職テーブル[],3,FALSE)="出"),1,0),0) -> 0 | AQ14: 鈴木市佐藤区 | AR14: 〒987-6543 | AS14: =会員テーブル[[#This Row],[役職１]]&" "&会員テーブル[[#This Row],[役職2]]&" "&会員テーブル[[#This Row],[役職3]] -> 
A15: =ROW()-ROW(会員テーブル[[#Headers],[会員SORT]]) -> 12 | B15: =IFERROR(VLOOKUP(C15,班名テーブル[],2,FALSE),"") -> 2 | C15: [2-1] | F15: 島中 | G15: 清剛 | H15: しまなか | I15: Y | J15: 1 | K15: 1021 | L15: 7 | N15: 999-785-5197 | O15: 男 | P15: 昭和48 | Q15: 11 | R15: =IFERROR(VLOOKUP(P15,年号テーブル[],2,FALSE),"") -> 1973 | S15: 49 | AL15: =IF(会員テーブル[[#This Row],[住所1]]="",会員テーブル[[#This Row],[住所3]],IF(会員テーブル[[#This Row],[住所2]]="",字名&会員テーブル[[#This Row],[住所1]]&会員テーブル[[#This Row],[住所3]],字名&会員テーブル[[#This Row],[住所1]]&"-"&会員テーブル[[#This Row],[住所2]]&会員テーブル[[#This Row],[住所3]])) -> 山田村1021-7 | AM15: =会員テーブル[[#This Row],[姓]]&" "&会員テーブル[[#This Row],[名]] -> 島中 清剛 | AN15: =IFERROR(IF((VLOOKUP(会員テーブル[[#This Row],[役職１]],役職テーブル[],3,FALSE)="出"),1,0),0) -> 0 | AO15: =IFERROR(IF((VLOOKUP(会員テーブル[[#This Row],[役職2]],役職テーブル[],3,FALSE)="出"),1,0),0) -> 0 | AP15: =IFERROR(IF((VLOOKUP(会員テーブル[[#This Row],[役職3]],役職テーブル[],3,FALSE)="出"),1,0),0) -> 0 | AQ15: 鈴木市佐藤区 | AR15: 〒987-6543 | AS15: =会員テーブル[[#This Row],[役職１]]&" "&会員テーブル[[#This Row],[役職2]]&" "&会員テーブル[[#This Row],[役職3]] -> 
A16: =ROW()-ROW(会員テーブル[[#Headers],[会員SORT]]) -> 13 | B16: =IFERROR(VLOOKUP(C16,班名テーブル[],2,FALSE),"") -> 2 | C16: [2-1] | F16: 島中 | G16: 澄子 | H16: しまなか | J16: 2 | K16: 1021 | L16: 7 | N16: 999-785-5197 | O16: 女 | P16: 昭和19 | Q16: 12 | R16: =IFERROR(VLOOKUP(P16,年号テーブル[],2,FALSE),"") -> 1944 | S16: 78 | AG16: 女性部会計 | AL16: =IF(会員テーブル[[#This Row],[住所1]]="",会員テーブル[[#This Row],[住所3]],IF(会員テーブル[[#This Row],[住所2]]="",字名&会員テーブル[[#This Row],[住所1]]&会員テーブル[[#This Row],[住所3]],字名&会員テーブル[[#This Row],[住所1]]&"-"&会員テーブル[[#This Row],[住所2]]&会員テーブル[[#This Row],[住所3]])) -> 山田村1021-7 | AM16: =会員テーブル[[#This Row],[姓]]&" "&会員テーブル[[#This Row],[名]] -> 島中 澄子 | AN16: =IFERROR(IF((VLOOKUP(会員テーブル[[#This Row],[役職１]],役職テーブル[],3,FALSE)="出"),1,0),0) -> 0 | AO16: =IFERROR(IF((VLOOKUP(会員テーブル[[#This Row],[役職2]],役職テーブル[],3,FALSE)="出"),1,0),0) -> 0 | AP16: =IFERROR(IF((VLOOKUP(会員テーブル[[#This Row],[役職3]],役職テーブル[],3,FALSE)="出"),1,0),0) -> 0 | AQ16: 鈴木市佐藤区 | AR16: 〒987-6543 | AS16: =会員テーブル[[#This Row],[役職１]]&" "&会員テーブル[[#This Row],[役職2]]&" "&会員テーブル[[#This Row],[役職3]] -> 女性部会計
A17: =ROW()-ROW(会員テーブル[[#Headers],[会員SORT]]) -> 14 | B17: =IFERROR(VLOOKUP(C17,班名テーブル[],2,FALSE),"") -> 2 | C17: [2-1] | F17: 下山 | G17: 忍 | H17: したやま しのぶ | I17: Y | J17: 1 | K17: 1021 | L17: 10 | N17: 999-785-7533 | O17: 男 | P17: 昭和41 | Q17: 1 | R17: =IFERROR(VLOOKUP(P17,年号テーブル[],2,FALSE),"") -> 1966 | S17: 57 | AL17: =IF(会員テーブル[[#This Row],[住所1]]="",会員テーブル[[#This Row],[住所3]],IF(会員テーブル[[#This Row],[住所2]]="",字名&会員テーブル[[#This Row],[住所1]]&会員テーブル[[#This Row],[住所3]],字名&会員テーブル[[#This Row],[住所1]]&"-"&会員テーブル[[#This Row],[住所2]]&会員テーブル[[#This Row],[住所3]])) -> 山田村1021-10 | AM17: =会員テーブル[[#This Row],[姓]]&" "&会員テーブル[[#This Row],[名]] -> 下山 忍 | AN17: =IFERROR(IF((VLOOKUP(会員テーブル[[#This Row],[役職１]],役職テーブル[],3,FALSE)="出"),1,0),0) -> 0 | AO17: =IFERROR(IF((VLOOKUP(会員テーブル[[#This Row],[役職2]],役職テーブル[],3,FALSE)="出"),1,0),0) -> 0 | AP17: =IFERROR(IF((VLOOKUP(会員テーブル[[#This Row],[役職3]],役職テーブル[],3,FALSE)="出"),1,0),0) -> 0 | AQ17: 鈴木市佐藤区 | AR17: 〒987-6543 | AS17: =会員テーブル[[#This Row],[役職１]]&" "&会員テーブル[[#This Row],[役職2]]&" "&会員テーブル[[#This Row],[役職3]] -> 
A18: =ROW()-ROW(会員テーブル[[#Headers],[会員SORT]]) -> 15 | B18: =IFERROR(VLOOKUP(C18,班名テーブル[],2,FALSE),"") -> 2 | C18: [2-1] | F18: 柳小 | G18: 秋夫 | H18: やなぎこ あきお | I18: Y | J18: 1 | K18: 1021 | L18: 13 | N18: 999-785-7696 | O18: 男 | P18: 昭和23 | Q18: 2 | R18: =IFERROR(VLOOKUP(P18,年号テーブル[],2,FALSE),"") -> 1948 | S18: 75 | AL18: =IF(会員テーブル[[#This Row],[住所1]]="",会員テーブル[[#This Row],[住所3]],IF(会員テーブル[[#This Row],[住所2]]="",字名&会員テーブル[[#This Row],[住所1]]&会員テーブル[[#This Row],[住所3]],字名&会員テーブル[[#This Row],[住所1]]&"-"&会員テーブル[[#This Row],[住所2]]&会員テーブル[[#This Row],[住所3]])) -> 山田村1021-13 | AM18: =会員テーブル[[#This Row],[姓]]&" "&会員テーブル[[#This Row],[名]] -> 柳小 秋夫 | AN18: =IFERROR(IF((VLOOKUP(会員テーブル[[#This Row],[役職１]],役職テーブル[],3,FALSE)="出"),1,0),0) -> 0 | AO18: =IFERROR(IF((VLOOKUP(会員テーブル[[#This Row],[役職2]],役職テーブル[],3,FALSE)="出"),1,0),0) -> 0 | AP18: =IFERROR(IF((VLOOKUP(会員テーブル[[#This Row],[役職3]],役職テーブル[],3,FALSE)="出"),1,0),0) -> 0 | AQ18: 鈴木市佐藤区 | AR18: 〒987-6543 | AS18: =会員テーブル[[#This Row],[役職１]]&" "&会員テーブル[[#This Row],[役職2]]&" "&会員テーブル[[#This Row],[役職3]] -> 
A19: =ROW()-ROW(会員テーブル[[#Headers],[会員SORT]]) -> 16 | B19: =IFERROR(VLOOKUP(C19,班名テーブル[],2,FALSE),"") -> 2 | C19: [2-1] | F19: 柳小 | G19: 房枝 | H19: やなぎこ ふさえ | J19: 2 | K19: 1021 | L19: 13 | N19: 999-785-7696 | O19: 女 | P19: 昭和28 | Q19: 3 | R19: =IFERROR(VLOOKUP(P19,年号テーブル[],2,FALSE),"") -> 1953 | S19: 70 | AL19: =IF(会員テーブル[[#This Row],[住所1]]="",会員テーブル[[#This Row],[住所3]],IF(会員テーブル[[#This Row],[住所2]]="",字名&会員テーブル[[#This Row],[住所1]]&会員テーブル[[#This Row],[住所3]],字名&会員テーブル[[#This Row],[住所1]]&"-"&会員テーブル[[#This Row],[住所2]]&会員テーブル[[#This Row],[住所3]])) -> 山田村1021-13 | AM19: =会員テーブル[[#This Row],[姓]]&" "&会員テーブル[[#This Row],[名]] -> 柳小 房枝 | AN19: =IFERROR(IF((VLOOKUP(会員テーブル[[#This Row],[役職１]],役職テーブル[],3,FALSE)="出"),1,0),0) -> 0 | AO19: =IFERROR(IF((VLOOKUP(会員テーブル[[#This Row],[役職2]],役職テーブル[],3,FALSE)="出"),1,0),0) -> 0 | AP19: =IFERROR(IF((VLOOKUP(会員テーブル[[#This Row],[役職3]],役職テーブル[],3,FALSE)="出"),1,0),0) -> 0 | AQ19: 鈴木市佐藤区 | AR19: 〒987-6543 | AS19: =会員テーブル[[#This Row],[役職１]]&" "&会員テーブル[[#This Row],[役職2]]&" "&会員テーブル[[#This Row],[役職3]] -> 
A20: =ROW()-ROW(会員テーブル[[#Headers],[会員SORT]]) -> 17 | B20: =IFERROR(VLOOKUP(C20,班名テーブル[],2,FALSE),"") -> 3 | C20: [2-2] | F20: 下山 | G20: 恵利子 | H20: したやま えりこ | I20: Y | J20: 1 | K20: 1021 | L20: 10 | N20: 999-785-7533 | O20: 女 | P20: 昭和47 | Q20: 4 | R20: =IFERROR(VLOOKUP(P20,年号テーブル[],2,FALSE),"") -> 1972 | S20: 50 | AL20: =IF(会員テーブル[[#This Row],[住所1]]="",会員テーブル[[#This Row],[住所3]],IF(会員テーブル[[#This Row],[住所2]]="",字名&会員テーブル[[#This Row],[住所1]]&会員テーブル[[#This Row],[住所3]],字名&会員テーブル[[#This Row],[住所1]]&"-"&会員テーブル[[#This Row],[住所2]]&会員テーブル[[#This Row],[住所3]])) -> 山田村1021-10 | AM20: =会員テーブル[[#This Row],[姓]]&" "&会員テーブル[[#This Row],[名]] -> 下山 恵利子 | AN20: =IFERROR(IF((VLOOKUP(会員テーブル[[#This Row],[役職１]],役職テーブル[],3,FALSE)="出"),1,0),0) -> 0 | AO20: =IFERROR(IF((VLOOKUP(会員テーブル[[#This Row],[役職2]],役職テーブル[],3,FALSE)="出"),1,0),0) -> 0 | AP20: =IFERROR(IF((VLOOKUP(会員テーブル[[#This Row],[役職3]],役職テーブル[],3,FALSE)="出"),1,0),0) -> 0 | AQ20: 鈴木市佐藤区 | AR20: 〒987-6543 | AS20: =会員テーブル[[#This Row],[役職１]]&" "&会員テーブル[[#This Row],[役職2]]&" "&会員テーブル[[#This Row],[役職3]] -> 
A21: =ROW()-ROW(会員テーブル[[#Headers],[会員SORT]]) -> 18 | B21: =IFERROR(VLOOKUP(C21,班名テーブル[],2,FALSE),"") -> 3 | C21: [2-2] | F21: 下山 | G21: 隼矢 | H21: したやま じゅんや | J21: 2 | K21: 1021 | L21: 10 | N21: 999-785-7533 | O21: 男 | P21: 平成11 | Q21: 5 | R21: =IFERROR(VLOOKUP(P21,年号テーブル[],2,FALSE),"") -> 1999 | S21: 23 | AL21: =IF(会員テーブル[[#This Row],[住所1]]="",会員テーブル[[#This Row],[住所3]],IF(会員テーブル[[#This Row],[住所2]]="",字名&会員テーブル[[#This Row],[住所1]]&会員テーブル[[#This Row],[住所3]],字名&会員テーブル[[#This Row],[住所1]]&"-"&会員テーブル[[#This Row],[住所2]]&会員テーブル[[#This Row],[住所3]])) -> 山田村1021-10 | AM21: =会員テーブル[[#This Row],[姓]]&" "&会員テーブル[[#This Row],[名]] -> 下山 隼矢 | AN21: =IFERROR(IF((VLOOKUP(会員テーブル[[#This Row],[役職１]],役職テーブル[],3,FALSE)="出"),1,0),0) -> 0 | AO21: =IFERROR(IF((VLOOKUP(会員テーブル[[#This Row],[役職2]],役職テーブル[],3,FALSE)="出"),1,0),0) -> 0 | AP21: =IFERROR(IF((VLOOKUP(会員テーブル[[#This Row],[役職3]],役職テーブル[],3,FALSE)="出"),1,0),0) -> 0 | AQ21: 鈴木市佐藤区 | AR21: 〒987-6543 | AS21: =会員テーブル[[#This Row],[役職１]]&" "&会員テーブル[[#This Row],[役職2]]&" "&会員テーブル[[#This Row],[役職3]] ->  | AT21: Y
A22: =ROW()-ROW(会員テーブル[[#Headers],[会員SORT]]) -> 19 | B22: =IFERROR(VLOOKUP(C22,班名テーブル[],2,FALSE),"") -> 3 | C22: [2-2] | F22: 下山 | G22: 祐依 | H22: したやま ゆい | J22: 3 | K22: 1021 | L22: 10 | N22: 999-785-7533 | O22: 女 | P22: 平成14 | Q22: 6 | R22: =IFERROR(VLOOKUP(P22,年号テーブル[],2,FALSE),"") -> 2002 | S22: 20 | AL22: =IF(会員テーブル[[#This Row],[住所1]]="",会員テーブル[[#This Row],[住所3]],IF(会員テーブル[[#This Row],[住所2]]="",字名&会員テーブル[[#This Row],[住所1]]&会員テーブル[[#This Row],[住所3]],字名&会員テーブル[[#This Row],[住所1]]&"-"&会員テーブル[[#This Row],[住所2]]&会員テーブル[[#This Row],[住所3]])) -> 山田村1021-10 | AM22: =会員テーブル[[#This Row],[姓]]&" "&会員テーブル[[#This Row],[名]] -> 下山 祐依 | AN22: =IFERROR(IF((VLOOKUP(会員テーブル[[#This Row],[役職１]],役職テーブル[],3,FALSE)="出"),1,0),0) -> 0 | AO22: =IFERROR(IF((VLOOKUP(会員テーブル[[#This Row],[役職2]],役職テーブル[],3,FALSE)="出"),1,0),0) -> 0 | AP22: =IFERROR(IF((VLOOKUP(会員テーブル[[#This Row],[役職3]],役職テーブル[],3,FALSE)="出"),1,0),0) -> 0 | AQ22: 鈴木市佐藤区 | AR22: 〒987-6543 | AS22: =会員テーブル[[#This Row],[役職１]]&" "&会員テーブル[[#This Row],[役職2]]&" "&会員テーブル[[#This Row],[役職3]] -> 
A23: =ROW()-ROW(会員テーブル[[#Headers],[会員SORT]]) -> 20 | B23: =IFERROR(VLOOKUP(C23,班名テーブル[],2,FALSE),"") -> 3 | C23: [2-2] | F23: 下山 | G23: ひで子 | H23: したやま ひでこ | J23: 4 | K23: 1021 | L23: 10 | N23: 999-785-7533 | O23: 女 | P23: 昭和18 | Q23: 7 | R23: =IFERROR(VLOOKUP(P23,年号テーブル[],2,FALSE),"") -> 1943 | S23: 79 | AL23: =IF(会員テーブル[[#This Row],[住所1]]="",会員テーブル[[#This Row],[住所3]],IF(会員テーブル[[#This Row],[住所2]]="",字名&会員テーブル[[#This Row],[住所1]]&会員テーブル[[#This Row],[住所3]],字名&会員テーブル[[#This Row],[住所1]]&"-"&会員テーブル[[#This Row],[住所2]]&会員テーブル[[#This Row],[住所3]])) -> 山田村1021-10 | AM23: =会員テーブル[[#This Row],[姓]]&" "&会員テーブル[[#This Row],[名]] -> 下山 ひで子 | AN23: =IFERROR(IF((VLOOKUP(会員テーブル[[#This Row],[役職１]],役職テーブル[],3,FALSE)="出"),1,0),0) -> 0 | AO23: =IFERROR(IF((VLOOKUP(会員テーブル[[#This Row],[役職2]],役職テーブル[],3,FALSE)="出"),1,0),0) -> 0 | AP23: =IFERROR(IF((VLOOKUP(会員テーブル[[#This Row],[役職3]],役職テーブル[],3,FALSE)="出"),1,0),0) -> 0 | AQ23: 鈴木市佐藤区 | AR23: 〒987-6543 | AS23: =会員テーブル[[#This Row],[役職１]]&" "&会員テーブル[[#This Row],[役職2]]&" "&会員テーブル[[#This Row],[役職3]] -> 
A24: =ROW()-ROW(会員テーブル[[#Headers],[会員SORT]]) -> 21 | B24: =IFERROR(VLOOKUP(C24,班名テーブル[],2,FALSE),"") -> 3 | C24: [2-2] | F24: 花月 | G24: かよ子 | H24: かげつ かよこ | I24: Y | J24: 1 | K24: 1021 | L24: 15 | N24: 999-685-5292 | O24: 女 | P24: 昭和25 | Q24: 8 | R24: =IFERROR(VLOOKUP(P24,年号テーブル[],2,FALSE),"") -> 1950 | S24: 72 | AL24: =IF(会員テーブル[[#This Row],[住所1]]="",会員テーブル[[#This Row],[住所3]],IF(会員テーブル[[#This Row],[住所2]]="",字名&会員テーブル[[#This Row],[住所1]]&会員テーブル[[#This Row],[住所3]],字名&会員テーブル[[#This Row],[住所1]]&"-"&会員テーブル[[#This Row],[住所2]]&会員テーブル[[#This Row],[住所3]])) -> 山田村1021-15 | AM24: =会員テーブル[[#This Row],[姓]]&" "&会員テーブル[[#This Row],[名]] -> 花月 かよ子 | AN24: =IFERROR(IF((VLOOKUP(会員テーブル[[#This Row],[役職１]],役職テーブル[],3,FALSE)="出"),1,0),0) -> 0 | AO24: =IFERROR(IF((VLOOKUP(会員テーブル[[#This Row],[役職2]],役職テーブル[],3,FALSE)="出"),1,0),0) -> 0 | AP24: =IFERROR(IF((VLOOKUP(会員テーブル[[#This Row],[役職3]],役職テーブル[],3,FALSE)="出"),1,0),0) -> 0 | AQ24: 鈴木市佐藤区 | AR24: 〒987-6543 | AS24: =会員テーブル[[#This Row],[役職１]]&" "&会員テーブル[[#This Row],[役職2]]&" "&会員テーブル[[#This Row],[役職3]] ->  | AT24: Y
A25: =ROW()-ROW(会員テーブル[[#Headers],[会員SORT]]) -> 22 | B25: =IFERROR(VLOOKUP(C25,班名テーブル[],2,FALSE),"") -> 3 | C25: [2-2] | F25: 花月 | G25: 康祐 | H25: かげつ | J25: 2 | K25: 1021 | L25: 15 | N25: 999-685-5292 | O25: 男 | P25: 昭和58 | Q25: 9 | R25: =IFERROR(VLOOKUP(P25,年号テーブル[],2,FALSE),"") -> 1983 | S25: 39 | AL25: =IF(会員テーブル[[#This Row],[住所1]]="",会員テーブル[[#This Row],[住所3]],IF(会員テーブル[[#This Row],[住所2]]="",字名&会員テーブル[[#This Row],[住所1]]&会員テーブル[[#This Row],[住所3]],字名&会員テーブル[[#This Row],[住所1]]&"-"&会員テーブル[[#This Row],[住所2]]&会員テーブル[[#This Row],[住所3]])) -> 山田村1021-15 | AM25: =会員テーブル[[#This Row],[姓]]&" "&会員テーブル[[#This Row],[名]] -> 花月 康祐 | AN25: =IFERROR(IF((VLOOKUP(会員テーブル[[#This Row],[役職１]],役職テーブル[],3,FALSE)="出"),1,0),0) -> 0 | AO25: =IFERROR(IF((VLOOKUP(会員テーブル[[#This Row],[役職2]],役職テーブル[],3,FALSE)="出"),1,0),0) -> 0 | AP25: =IFERROR(IF((VLOOKUP(会員テーブル[[#This Row],[役職3]],役職テーブル[],3,FALSE)="出"),1,0),0) -> 0 | AQ25: 鈴木市佐藤区 | AR25: 〒987-6543 | AS25: =会員テーブル[[#This Row],[役職１]]&" "&会員テーブル[[#This Row],[役職2]]&" "&会員テーブル[[#This Row],[役職3]] -> 
A26: =ROW()-ROW(会員テーブル[[#Headers],[会員SORT]]) -> 23 | B26: =IFERROR(VLOOKUP(C26,班名テーブル[],2,FALSE),"") -> 3 | C26: [2-2] | F26: 花月 | G26: 千安紀 | H26: かげつ | J26: 3 | K26: 1021 | L26: 15 | N26: 999-685-5292 | O26: 女 | P26: 昭和61 | Q26: 10 | R26: =IFERROR(VLOOKUP(P26,年号テーブル[],2,FALSE),"") -> 1986 | S26: 36 | AL26: =IF(会員テーブル[[#This Row],[住所1]]="",会員テーブル[[#This Row],[住所3]],IF(会員テーブル[[#This Row],[住所2]]="",字名&会員テーブル[[#This Row],[住所1]]&会員テーブル[[#This Row],[住所3]],字名&会員テーブル[[#This Row],[住所1]]&"-"&会員テーブル[[#This Row],[住所2]]&会員テーブル[[#This Row],[住所3]])) -> 山田村1021-15 | AM26: =会員テーブル[[#This Row],[姓]]&" "&会員テーブル[[#This Row],[名]] -> 花月 千安紀 | AN26: =IFERROR(IF((VLOOKUP(会員テーブル[[#This Row],[役職１]],役職テーブル[],3,FALSE)="出"),1,0),0) -> 0 | AO26: =IFERROR(IF((VLOOKUP(会員テーブル[[#This Row],[役職2]],役職テーブル[],3,FALSE)="出"),1,0),0) -> 0 | AP26: =IFERROR(IF((VLOOKUP(会員テーブル[[#This Row],[役職3]],役職テーブル[],3,FALSE)="出"),1,0),0) -> 0 | AQ26: 鈴木市佐藤区 | AR26: 〒987-6543 | AS26: =会員テーブル[[#This Row],[役職１]]&" "&会員テーブル[[#This Row],[役職2]]&" "&会員テーブル[[#This Row],[役職3]] -> 
A27: =ROW()-ROW(会員テーブル[[#Headers],[会員SORT]]) -> 24 | B27: =IFERROR(VLOOKUP(C27,班名テーブル[],2,FALSE),"") -> 4 | C27: [3-1] | F27: 本松 | G27: 健 | H27: もとまつ けん | I27: Y | J27: 1 | K27: 1019 | L27: 2 | N27: 999-2222-9794 | O27: 男 | P27: 昭和54 | Q27: 11 | R27: =IFERROR(VLOOKUP(P27,年号テーブル[],2,FALSE),"") -> 1979 | S27: 43 | Z27: 災害弱者 | AL27: =IF(会員テーブル[[#This Row],[住所1]]="",会員テーブル[[#This Row],[住所3]],IF(会員テーブル[[#This Row],[住所2]]="",字名&会員テーブル[[#This Row],[住所1]]&会員テーブル[[#This Row],[住所3]],字名&会員テーブル[[#This Row],[住所1]]&"-"&会員テーブル[[#This Row],[住所2]]&会員テーブル[[#This Row],[住所3]])) -> 山田村1019-2 | AM27: =会員テーブル[[#This Row],[姓]]&" "&会員テーブル[[#This Row],[名]] -> 本松 健 | AN27: =IFERROR(IF((VLOOKUP(会員テーブル[[#This Row],[役職１]],役職テーブル[],3,FALSE)="出"),1,0),0) -> 0 | AO27: =IFERROR(IF((VLOOKUP(会員テーブル[[#This Row],[役職2]],役職テーブル[],3,FALSE)="出"),1,0),0) -> 0 | AP27: =IFERROR(IF((VLOOKUP(会員テーブル[[#This Row],[役職3]],役職テーブル[],3,FALSE)="出"),1,0),0) -> 0 | AQ27: 鈴木市佐藤区 | AR27: 〒987-6543 | AS27: =会員テーブル[[#This Row],[役職１]]&" "&会員テーブル[[#This Row],[役職2]]&" "&会員テーブル[[#This Row],[役職3]] -> 
A28: =ROW()-ROW(会員テーブル[[#Headers],[会員SORT]]) -> 25 | B28: =IFERROR(VLOOKUP(C28,班名テーブル[],2,FALSE),"") -> 4 | C28: [3-1] | F28: 本松 | G28: 紗英子 | H28: もとまつ | J28: 2 | K28: 1019 | L28: 2 | N28: 999-2222-9794 | O28: 女 | P28: 昭和58 | Q28: 12 | R28: =IFERROR(VLOOKUP(P28,年号テーブル[],2,FALSE),"") -> 1983 | S28: 39 | AL28: =IF(会員テーブル[[#This Row],[住所1]]="",会員テーブル[[#This Row],[住所3]],IF(会員テーブル[[#This Row],[住所2]]="",字名&会員テーブル[[#This Row],[住所1]]&会員テーブル[[#This Row],[住所3]],字名&会員テーブル[[#This Row],[住所1]]&"-"&会員テーブル[[#This Row],[住所2]]&会員テーブル[[#This Row],[住所3]])) -> 山田村1019-2 | AM28: =会員テーブル[[#This Row],[姓]]&" "&会員テーブル[[#This Row],[名]] -> 本松 紗英子 | AN28: =IFERROR(IF((VLOOKUP(会員テーブル[[#This Row],[役職１]],役職テーブル[],3,FALSE)="出"),1,0),0) -> 0 | AO28: =IFERROR(IF((VLOOKUP(会員テーブル[[#This Row],[役職2]],役職テーブル[],3,FALSE)="出"),1,0),0) -> 0 | AP28: =IFERROR(IF((VLOOKUP(会員テーブル[[#This Row],[役職3]],役職テーブル[],3,FALSE)="出"),1,0),0) -> 0 | AQ28: 鈴木市佐藤区 | AR28: 〒987-6543 | AS28: =会員テーブル[[#This Row],[役職１]]&" "&会員テーブル[[#This Row],[役職2]]&" "&会員テーブル[[#This Row],[役職3]] -> 
A29: =ROW()-ROW(会員テーブル[[#Headers],[会員SORT]]) -> 26 | B29: =IFERROR(VLOOKUP(C29,班名テーブル[],2,FALSE),"") -> 4 | C29: [3-1] | F29: 野河 | G29: 節男 | H29: のかわ せつお | I29: Y | J29: 1 | K29: 1021 | L29: 16 | N29: 999-685-0721 | O29: 男 | P29: 昭和27 | Q29: 1 | R29: =IFERROR(VLOOKUP(P29,年号テーブル[],2,FALSE),"") -> 1952 | S29: 71 | AE29: 独居者 | AL29: =IF(会員テーブル[[#This Row],[住所1]]="",会員テーブル[[#This Row],[住所3]],IF(会員テーブル[[#This Row],[住所2]]="",字名&会員テーブル[[#This Row],[住所1]]&会員テーブル[[#This Row],[住所3]],字名&会員テーブル[[#This Row],[住所1]]&"-"&会員テーブル[[#This Row],[住所2]]&会員テーブル[[#This Row],[住所3]])) -> 山田村1021-16 | AM29: =会員テーブル[[#This Row],[姓]]&" "&会員テーブル[[#This Row],[名]] -> 野河 節男 | AN29: =IFERROR(IF((VLOOKUP(会員テーブル[[#This Row],[役職１]],役職テーブル[],3,FALSE)="出"),1,0),0) -> 0 | AO29: =IFERROR(IF((VLOOKUP(会員テーブル[[#This Row],[役職2]],役職テーブル[],3,FALSE)="出"),1,0),0) -> 0 | AP29: =IFERROR(IF((VLOOKUP(会員テーブル[[#This Row],[役職3]],役職テーブル[],3,FALSE)="出"),1,0),0) -> 0 | AQ29: 鈴木市佐藤区 | AR29: 〒987-6543 | AS29: =会員テーブル[[#This Row],[役職１]]&" "&会員テーブル[[#This Row],[役職2]]&" "&会員テーブル[[#This Row],[役職3]] -> 
A30: =ROW()-ROW(会員テーブル[[#Headers],[会員SORT]]) -> 27 | B30: =IFERROR(VLOOKUP(C30,班名テーブル[],2,FALSE),"") -> 4 | C30: [3-1] | E30: 転居 | F30: 水清 | G30: 克彦 | H30: みずきよ かつひこ | I30: Y | J30: 1 | K30: 1022 | L30: 4 | N30: 999-1122-5958 | O30: 男 | P30: 昭和62 | Q30: 2 | R30: =IFERROR(VLOOKUP(P30,年号テーブル[],2,FALSE),"") -> 1987 | S30: 36 | W30: 令和4 | X30: 2 | Y30: 2022 | AL30: =IF(会員テーブル[[#This Row],[住所1]]="",会員テーブル[[#This Row],[住所3]],IF(会員テーブル[[#This Row],[住所2]]="",字名&会員テーブル[[#This Row],[住所1]]&会員テーブル[[#This Row],[住所3]],字名&会員テーブル[[#This Row],[住所1]]&"-"&会員テーブル[[#This Row],[住所2]]&会員テーブル[[#This Row],[住所3]])) -> 山田村1022-4 | AM30: =会員テーブル[[#This Row],[姓]]&" "&会員テーブル[[#This Row],[名]] -> 水清 克彦 | AN30: =IFERROR(IF((VLOOKUP(会員テーブル[[#This Row],[役職１]],役職テーブル[],3,FALSE)="出"),1,0),0) -> 0 | AO30: =IFERROR(IF((VLOOKUP(会員テーブル[[#This Row],[役職2]],役職テーブル[],3,FALSE)="出"),1,0),0) -> 0 | AP30: =IFERROR(IF((VLOOKUP(会員テーブル[[#This Row],[役職3]],役職テーブル[],3,FALSE)="出"),1,0),0) -> 0 | AQ30: 鈴木市佐藤区 | AR30: 〒987-6543 | AS30: =会員テーブル[[#This Row],[役職１]]&" "&会員テーブル[[#This Row],[役職2]]&" "&会員テーブル[[#This Row],[役職3]] -> 
A31: =ROW()-ROW(会員テーブル[[#Headers],[会員SORT]]) -> 28 | B31: =IFERROR(VLOOKUP(C31,班名テーブル[],2,FALSE),"") -> 4 | C31: [3-1] | F31: 水清 | G31: 早耶香 | H31: みずきよ | J31: 1 | K31: 1022 | L31: 4 | N31: 999-1122-5958 | O31: 女 | P31: 昭和61 | Q31: 3 | R31: =IFERROR(VLOOKUP(P31,年号テーブル[],2,FALSE),"") -> 1986 | S31: 37 | AL31: =IF(会員テーブル[[#This Row],[住所1]]="",会員テーブル[[#This Row],[住所3]],IF(会員テーブル[[#This Row],[住所2]]="",字名&会員テーブル[[#This Row],[住所1]]&会員テーブル[[#This Row],[住所3]],字名&会員テーブル[[#This Row],[住所1]]&"-"&会員テーブル[[#This Row],[住所2]]&会員テーブル[[#This Row],[住所3]])) -> 山田村1022-4 | AM31: =会員テーブル[[#This Row],[姓]]&" "&会員テーブル[[#This Row],[名]] -> 水清 早耶香 | AN31: =IFERROR(IF((VLOOKUP(会員テーブル[[#This Row],[役職１]],役職テーブル[],3,FALSE)="出"),1,0),0) -> 0 | AO31: =IFERROR(IF((VLOOKUP(会員テーブル[[#This Row],[役職2]],役職テーブル[],3,FALSE)="出"),1,0),0) -> 0 | AP31: =IFERROR(IF((VLOOKUP(会員テーブル[[#This Row],[役職3]],役職テーブル[],3,FALSE)="出"),1,0),0) -> 0 | AQ31: 鈴木市佐藤区 | AR31: 〒987-6543 | AS31: =会員テーブル[[#This Row],[役職１]]&" "&会員テーブル[[#This Row],[役職2]]&" "&会員テーブル[[#This Row],[役職3]] -> 
A32: =ROW()-ROW(会員テーブル[[#Headers],[会員SORT]]) -> 29 | B32: =IFERROR(VLOOKUP(C32,班名テーブル[],2,FALSE),"") -> 5 | C32: [3-2] | F32: 澤伊 | G32: 裕吉 | H32: さわい ゆうきち | I32: Y | J32: 1 | K32: 1021 | L32: 11 | N32: 999-685-1575 | O32: 男 | P32: 昭和29 | Q32: 4 | R32: =IFERROR(VLOOKUP(P32,年号テーブル[],2,FALSE),"") -> 1954 | S32: 68 | AL32: =IF(会員テーブル[[#This Row],[住所1]]="",会員テーブル[[#This Row],[住所3]],IF(会員テーブル[[#This Row],[住所2]]="",字名&会員テーブル[[#This Row],[住所1]]&会員テーブル[[#This Row],[住所3]],字名&会員テーブル[[#This Row],[住所1]]&"-"&会員テーブル[[#This Row],[住所2]]&会員テーブル[[#This Row],[住所3]])) -> 山田村1021-11 | AM32: =会員テーブル[[#This Row],[姓]]&" "&会員テーブル[[#This Row],[名]] -> 澤伊 裕吉 | AN32: =IFERROR(IF((VLOOKUP(会員テーブル[[#This Row],[役職１]],役職テーブル[],3,FALSE)="出"),1,0),0) -> 0 | AO32: =IFERROR(IF((VLOOKUP(会員テーブル[[#This Row],[役職2]],役職テーブル[],3,FALSE)="出"),1,0),0) -> 0 | AP32: =IFERROR(IF((VLOOKUP(会員テーブル[[#This Row],[役職3]],役職テーブル[],3,FALSE)="出"),1,0),0) -> 0 | AQ32: 鈴木市佐藤区 | AR32: 〒987-6543 | AS32: =会員テーブル[[#This Row],[役職１]]&" "&会員テーブル[[#This Row],[役職2]]&" "&会員テーブル[[#This Row],[役職3]] -> 
A33: =ROW()-ROW(会員テーブル[[#Headers],[会員SORT]]) -> 30 | B33: =IFERROR(VLOOKUP(C33,班名テーブル[],2,FALSE),"") -> 5 | C33: [3-2] | F33: 澤伊 | G33: 康江 | H33: さわい | J33: 2 | K33: 1021 | L33: 11 | N33: 999-685-1575 | O33: 女 | P33: 昭和33 | Q33: 5 | R33: =IFERROR(VLOOKUP(P33,年号テーブル[],2,FALSE),"") -> 1958 | S33: 64 | AL33: =IF(会員テーブル[[#This Row],[住所1]]="",会員テーブル[[#This Row],[住所3]],IF(会員テーブル[[#This Row],[住所2]]="",字名&会員テーブル[[#This Row],[住所1]]&会員テーブル[[#This Row],[住所3]],字名&会員テーブル[[#This Row],[住所1]]&"-"&会員テーブル[[#This Row],[住所2]]&会員テーブル[[#This Row],[住所3]])) -> 山田村1021-11 | AM33: =会員テーブル[[#This Row],[姓]]&" "&会員テーブル[[#This Row],[名]] -> 澤伊 康江 | AN33: =IFERROR(IF((VLOOKUP(会員テーブル[[#This Row],[役職１]],役職テーブル[],3,FALSE)="出"),1,0),0) -> 0 | AO33: =IFERROR(IF((VLOOKUP(会員テーブル[[#This Row],[役職2]],役職テーブル[],3,FALSE)="出"),1,0),0) -> 0 | AP33: =IFERROR(IF((VLOOKUP(会員テーブル[[#This Row],[役職3]],役職テーブル[],3,FALSE)="出"),1,0),0) -> 0 | AQ33: 鈴木市佐藤区 | AR33: 〒987-6543 | AS33: =会員テーブル[[#This Row],[役職１]]&" "&会員テーブル[[#This Row],[役職2]]&" "&会員テーブル[[#This Row],[役職3]] -> 
A34: =ROW()-ROW(会員テーブル[[#Headers],[会員SORT]]) -> 31 | B34: =IFERROR(VLOOKUP(C34,班名テーブル[],2,FALSE),"") -> 7 | C34: [4-2] | E34: 死去 | F34: 緯度 | G34: 一郎 | H34: いど いちろう | I34: Y | J34: 1 | K34: 2222 | L34: 22 | N34: 222-222-2222 | O34: 男 | P34: 昭和17 | Q34: 4 | R34: =IFERROR(VLOOKUP(P34,年号テーブル[],2,FALSE),"") -> 1942 | S34: 80 | W34: 令和4 | X34: 8 | Y34: 2022 | AL34: =IF(会員テーブル[[#This Row],[住所1]]="",会員テーブル[[#This Row],[住所3]],IF(会員テーブル[[#This Row],[住所2]]="",字名&会員テーブル[[#This Row],[住所1]]&会員テーブル[[#This Row],[住所3]],字名&会員テーブル[[#This Row],[住所1]]&"-"&会員テーブル[[#This Row],[住所2]]&会員テーブル[[#This Row],[住所3]])) -> 山田村2222-22 | AM34: =会員テーブル[[#This Row],[姓]]&" "&会員テーブル[[#This Row],[名]] -> 緯度 一郎 | AN34: =IFERROR(IF((VLOOKUP(会員テーブル[[#This Row],[役職１]],役職テーブル[],3,FALSE)="出"),1,0),0) -> 0 | AO34: =IFERROR(IF((VLOOKUP(会員テーブル[[#This Row],[役職2]],役職テーブル[],3,FALSE)="出"),1,0),0) -> 0 | AP34: =IFERROR(IF((VLOOKUP(会員テーブル[[#This Row],[役職3]],役職テーブル[],3,FALSE)="出"),1,0),0) -> 0 | AQ34: 鈴木市佐藤区 | AR34: 〒987-6543 | AS34: =会員テーブル[[#This Row],[役職１]]&" "&会員テーブル[[#This Row],[役職2]]&" "&会員テーブル[[#This Row],[役職3]] -> 
A35: =ROW()-ROW(会員テーブル[[#Headers],[会員SORT]]) -> 32 | B35: =IFERROR(VLOOKUP(C35,班名テーブル[],2,FALSE),"") -> 7 | C35: [4-2] | F35: 緯度 | G35: 花子 | H35: いど はなこ | I35: Y | J35: 1 | K35: 2222 | L35: 22 | N35: 222-222-2222 | O35: 女 | P35: 令和2 | Q35: 5 | R35: =IFERROR(VLOOKUP(P35,年号テーブル[],2,FALSE),"") -> 2020 | S35: 2 | AL35: =IF(会員テーブル[[#This Row],[住所1]]="",会員テーブル[[#This Row],[住所3]],IF(会員テーブル[[#This Row],[住所2]]="",字名&会員テーブル[[#This Row],[住所1]]&会員テーブル[[#This Row],[住所3]],字名&会員テーブル[[#This Row],[住所1]]&"-"&会員テーブル[[#This Row],[住所2]]&会員テーブル[[#This Row],[住所3]])) -> 山田村2222-22 | AM35: =会員テーブル[[#This Row],[姓]]&" "&会員テーブル[[#This Row],[名]] -> 緯度 花子 | AN35: =IFERROR(IF((VLOOKUP(会員テーブル[[#This Row],[役職１]],役職テーブル[],3,FALSE)="出"),1,0),0) -> 0 | AO35: =IFERROR(IF((VLOOKUP(会員テーブル[[#This Row],[役職2]],役職テーブル[],3,FALSE)="出"),1,0),0) -> 0 | AP35: =IFERROR(IF((VLOOKUP(会員テーブル[[#This Row],[役職3]],役職テーブル[],3,FALSE)="出"),1,0),0) -> 0 | AQ35: 鈴木市佐藤区 | AR35: 〒987-6543 | AS35: =会員テーブル[[#This Row],[役職１]]&" "&会員テーブル[[#This Row],[役職2]]&" "&会員テーブル[[#This Row],[役職3]] -> 
A36: =ROW()-ROW(会員テーブル[[#Headers],[会員SORT]]) -> 33 | B36: =IFERROR(VLOOKUP(C36,班名テーブル[],2,FALSE),"") ->  | R36: =IFERROR(VLOOKUP(P36,年号テーブル[],2,FALSE),"") ->  | S36: =IFERROR(IF((nenreim-Q36)<0,(nenreiy-R36)-1,(nenreiy-R36)),"") ->  | V36: =IFERROR(VLOOKUP(T36,nengou2,2,FALSE),"") ->  | Y36: =IFERROR(VLOOKUP(W36,nengou2,2,FALSE),"") ->  | AK36: =IF((AN36+AO36+AP36)>0,"出","") ->  | AL36: =IF(会員テーブル[[#This Row],[住所1]]="",会員テーブル[[#This Row],[住所3]],IF(会員テーブル[[#This Row],[住所2]]="",字名&会員テーブル[[#This Row],[住所1]]&会員テーブル[[#This Row],[住所3]],字名&会員テーブル[[#This Row],[住所1]]&"-"&会員テーブル[[#This Row],[住所2]]&会員テーブル[[#This Row],[住所3]])) -> 0 | AM36: =会員テーブル[[#This Row],[姓]]&" "&会員テーブル[[#This Row],[名]] ->  | AN36: =IFERROR(IF((VLOOKUP(会員テーブル[[#This Row],[役職１]],役職テーブル[],3,FALSE)="出"),1,0),0) -> 0 | AO36: =IFERROR(IF((VLOOKUP(会員テーブル[[#This Row],[役職2]],役職テーブル[],3,FALSE)="出"),1,0),0) -> 0 | AP36: =IFERROR(IF((VLOOKUP(会員テーブル[[#This Row],[役職3]],役職テーブル[],3,FALSE)="出"),1,0),0) -> 0 | AQ36: =市区名 -> 鈴木市佐藤区 | AR36: =郵便初期値 -> 〒987-6543 | AS36: =会員テーブル[[#This Row],[役職１]]&" "&会員テーブル[[#This Row],[役職2]]&" "&会員テーブル[[#This Row],[役職3]] -> 
A37: =ROW()-ROW(会員テーブル[[#Headers],[会員SORT]]) -> 34 | B37: =IFERROR(VLOOKUP(C37,班名テーブル[],2,FALSE),"") ->  | R37: =IFERROR(VLOOKUP(P37,年号テーブル[],2,FALSE),"") ->  | S37: =IFERROR(IF((nenreim-Q37)<0,(nenreiy-R37)-1,(nenreiy-R37)),"") ->  | V37: =IFERROR(VLOOKUP(T37,nengou2,2,FALSE),"") ->  | Y37: =IFERROR(VLOOKUP(W37,nengou2,2,FALSE),"") ->  | AK37: =IF((AN37+AO37+AP37)>0,"出","") ->  | AL37: =IF(会員テーブル[[#This Row],[住所1]]="",会員テーブル[[#This Row],[住所3]],IF(会員テーブル[[#This Row],[住所2]]="",字名&会員テーブル[[#This Row],[住所1]]&会員テーブル[[#This Row],[住所3]],字名&会員テーブル[[#This Row],[住所1]]&"-"&会員テーブル[[#This Row],[住所2]]&会員テーブル[[#This Row],[住所3]])) -> 0 | AM37: =会員テーブル[[#This Row],[姓]]&" "&会員テーブル[[#This Row],[名]] ->  | AN37: =IFERROR(IF((VLOOKUP(会員テーブル[[#This Row],[役職１]],役職テーブル[],3,FALSE)="出"),1,0),0) -> 0 | AO37: =IFERROR(IF((VLOOKUP(会員テーブル[[#This Row],[役職2]],役職テーブル[],3,FALSE)="出"),1,0),0) -> 0 | AP37: =IFERROR(IF((VLOOKUP(会員テーブル[[#This Row],[役職3]],役職テーブル[],3,FALSE)="出"),1,0),0) -> 0 | AQ37: =市区名 -> 鈴木市佐藤区 | AR37: =郵便初期値 -> 〒987-6543 | AS37: =会員テーブル[[#This Row],[役職１]]&" "&会員テーブル[[#This Row],[役職2]]&" "&会員テーブル[[#This Row],[役職3]] -> 

Sheet 総会書類作成
B1: 1972
H3: 28
B4: ＜班＞ | C4: 住 所 | D4: 世帯員No | E4: 世帯主Y | F4: 氏 名 | G4: 賛成空欄、 反対はX | H4: 28 | I4: ←対象会員数
A5: 退会理由 | B5: 班 | C5: 補助情報_連結住所 | D5: 世帯員No | E5: 世帯主Y | F5: 補助情報_連結氏名 | G5: 賛否
B6: [1] | C6: 山田村107 | D6: 1 | E6: Y | F6: 井永 省三郎 | G6: ( )
B7: [1] | C7: 山田村107 | D7: 2 | F7: 井永 明枝 | G7: ( )
B8: [1] | C8: 山田村1018 | D8: 1 | E8: Y | F8: 井永 幸次 | G8: ( )
B9: [1] | C9: 山田村1020-2 | D9: 1 | E9: Y | F9: 子兼 隆保 | G9: ( )
B10: [2-1] | C10: 山田村333-33 | D10: 1 | E10: Y | F10: 経度 次郎 | G10: ( )
B11: [2-1] | C11: 山田村1018 | D11: 1 | E11: Y | F11: 井永 京子 | G11: ( )
B12: [2-1] | C12: 山田村1018 | D12: 2 | F12: 井永 和広 | G12: ( )
B13: [2-1] | C13: 山田村1018 | D13: 3 | F13: 井永 友子 | G13: ( )
B14: [2-1] | C14: 山田村1021-7 | D14: 1 | E14: Y | F14: 島中 清剛 | G14: ( )
B15: [2-1] | C15: 山田村1021-7 | D15: 2 | F15: 島中 澄子 | G15: ( )
B16: [2-1] | C16: 山田村1021-10 | D16: 1 | E16: Y | F16: 下山 忍 | G16: ( )
B17: [2-1] | C17: 山田村1021-13 | D17: 1 | E17: Y | F17: 柳小 秋夫 | G17: ( )
B18: [2-1] | C18: 山田村1021-13 | D18: 2 | F18: 柳小 房枝 | G18: ( )
B19: [2-2] | C19: 山田村1021-10 | D19: 1 | E19: Y | F19: 下山 恵利子 | G19: ( )
B20: [2-2] | C20: 山田村1021-10 | D20: 2 | F20: 下山 隼矢 | G20: ( )
B21: [2-2] | C21: 山田村1021-10 | D21: 3 | F21: 下山 祐依 | G21: ( )
B22: [2-2] | C22: 山田村1021-10 | D22: 4 | F22: 下山 ひで子 | G22: ( )
B23: [2-2] | C23: 山田村1021-15 | D23: 1 | E23: Y | F23: 花月 かよ子 | G23: ( )
B24: [2-2] | C24: 山田村1021-15 | D24: 2 | F24: 花月 康祐 | G24: ( )
B25: [2-2] | C25: 山田村1021-15 | D25: 3 | F25: 花月 千安紀 | G25: ( )
B26: [3-1] | C26: 山田村1019-2 | D26: 1 | E26: Y | F26: 本松 健 | G26: ( )
B27: [3-1] | C27: 山田村1019-2 | D27: 2 | F27: 本松 紗英子 | G27: ( )
B28: [3-1] | C28: 山田村1021-16 | D28: 1 | E28: Y | F28: 野河 節男 | G28: ( )
B29: [3-1] | C29: 山田村1022-4 | D29: 1 | F29: 水清 早耶香 | G29: ( )
B30: [3-2] | C30: 山田村1021-11 | D30: 1 | E30: Y | F30: 澤伊 裕吉 | G30: ( )
B31: [3-2] | C31: 山田村1021-11 | D31: 2 | F31: 澤伊 康江 | G31: ( )
B32: [4-2] | C32: 山田村2222-22 | D32: 1 | E32: Y | F32: 緯度 花子 | G32: ( )

Sheet 総会文面
B1: A自治会 通常総会 書面表決
B2: ＜第１号議案＞
B3: 令和x年度「A自治会三役」案
B4: 役職名 | C4: 氏名 | D4: 住所 | E4: 班名 | F4: 備考（兼） | H4: 文を、左に書きます。
B5: 自治会長 | C5: 鈴木 一郎 | D5: 山田村11 | E5: 1班(南) | F5: 認可地縁団体代表者 | H5: A～G、１行目～36行目の範囲。
F6: A地域福祉会長 | H6: EXCELのカメラの機能を使って、「総会書類作成」シートの１～3行目へリンク貼り付けします。
B7: 副自治会長 | C7: 鈴川 花子 | D7: 山田村333 | E7: 2班(東） | F7: 公民館管理委員長
B8: （会計）
B9: 副自治会長 | C9: 鈴山 太助 | D9: 山田村444 | E9: 3班(西) | F9: 環境美化推進委員長
B10: （書記）
B18: 上記、第１号議案の賛否を提出します。
B20: 代表者氏名 _________________ 印
B23: （※増員の場合は氏名を追加記入、減員の場合は横線で取り消しください。）

Sheet 委員会書類
B1: =VLOOKUP(L1,委員会書類[],2,FALSE) -> 〒987-6543鈴木市佐藤区 | K1: 令和 年 月 日 | L1: 3 | M1: 番号 | T1: 番号 | U1: 郵市区名 | V1: 補助情報_連結住所 | W1: 氏名様 | X1: 班 | Y1: 補助役職連記 | Z1: 委員会要出 | AA1: 退会理由
B2: =VLOOKUP(L1,委員会書類[],3,FALSE) -> 山田村1020-2 | T2: 1 | U2: 〒987-6543鈴木市佐藤区 | V2: 山田村107 | W2: 井永 明枝 様 | X2: [1] | Y2: 自治会副会長(書記) | Z2: 出
B3: =VLOOKUP(L1,委員会書類[],4,FALSE) -> 子兼 隆保 様 | E3: =VLOOKUP(L1,委員会書類[],5,FALSE) -> [1] | T3: 2 | U3: 〒987-6543鈴木市佐藤区 | V3: 山田村1018 | W3: 井永 幸次 様 | X3: [1] | Y3: ブロック長 | Z3: 出
B4: =VLOOKUP(L1,委員会書類[],6,FALSE) -> ブロック長 | T4: 3 | U4: 〒987-6543鈴木市佐藤区 | V4: 山田村1020-2 | W4: 子兼 隆保 様 | X4: [1] | Y4: ブロック長 | Z4: 出
L20: 右の表から、PDFを作成したい開始番号と終了番号を入れてください。
L21: （範囲外はエラーになります）。
E22: この中に文章を書きます。 | N22: 開始番号 | O22: 終了番号 | P22: 最終番号は
N23: 1 | O23: 3 | P23: =MAX(委員会書類[],1) -> 3

Sheet 任意作成
B1: =VLOOKUP(L1,任意抽出[],2,FALSE) -> 〒987-6543鈴木市佐藤区 | K1: 令和 年 月 日 | L1: 3 | M1: 番号 | T1: 番号 | U1: 郵市区名 | V1: 補助情報_連結住所 | W1: 氏名様 | X1: 班 | Y1: 補助役職連記 | Z1: 任意抽出Y
B2: =VLOOKUP(L1,任意抽出[],3,FALSE) -> 山田村1021-10 | T2: 1 | U2: 〒987-6543鈴木市佐藤区 | V2: 山田村107 | W2: 井永 明枝 様 | X2: [1] | Y2: 自治会副会長(書記) | Z2: Y
B3: =VLOOKUP(L1,任意抽出[],4,FALSE) -> 下山 隼矢 様 | E3: =VLOOKUP(L1,任意抽出[],5,FALSE) -> [2-2] | T3: 2 | U3: 〒987-6543鈴木市佐藤区 | V3: 山田村1020-2 | W3: 子兼 隆保 様 | X3: [1] | Y3: ブロック長 | Z3: Y
B4: =VLOOKUP(L1,任意抽出[],6,FALSE) ->  | L4: ＜１＞ | M4: 左に文書を作成してください。 | T4: 3 | U4: 〒987-6543鈴木市佐藤区 | V4: 山田村1021-10 | W4: 下山 隼矢 様 | X4: [2-2] | Z4: Y
T5: 4 | U5: 〒987-6543鈴木市佐藤区 | V5: 山田村1021-15 | W5: 花月 かよ子 様 | X5: [2-2] | Z5: Y
L10: ＜２＞ | M10: 文書を送付したい人を会員シートから選択してください。
M11: 会員シートの任意抽出列にYを選んでください。
L18: ＜３＞ | M18: ＜２＞を済ませたら、下をクリックしてください。
E22: この中に文章を書きます。
L28: ＜４＞
L29: 右の表から、PDFを作成したい開始番号と終了番号を入れてください。
L30: （範囲外はエラーになります）。
N31: 開始番号 | O31: 終了番号 | P31: 最終番号は
N32: 1 | O32: 3 | P32: =MAX(任意抽出[],1) -> 4
L34: ＜５＞ | M34: ファイル名を付けてください。
N36: ファイル名
N37: テスト2

Sheet 班名
C1: ※班名SORTは変更後の状態で自動採番します。
A2: 班名 | B2: 班名SORT
A3: [1] | B3: =ROW()-ROW(班名!$B$2) -> 1
A4: [2-1] | B4: =ROW()-ROW(班名!$B$2) -> 2
A5: [2-2] | B5: =ROW()-ROW(班名!$B$2) -> 3
A6: [3-1] | B6: =ROW()-ROW(班名!$B$2) -> 4
A7: [3-2] | B7: =ROW()-ROW(班名!$B$2) -> 5
A8: [4-1] | B8: =ROW()-ROW(班名!$B$2) -> 6
A9: [4-2] | B9: =ROW()-ROW(班名!$B$2) -> 7
A10: [4-3] | B10: =ROW()-ROW(班名!$B$2) -> 8
A11: [5-1] | B11: =ROW()-ROW(班名!$B$2) -> 9
A12: [5-2] | B12: =ROW()-ROW(班名!$B$2) -> 10
A13: [6-1] | B13: =ROW()-ROW(班名!$B$2) -> 11
A14: [6-2] | B14: =ROW()-ROW(班名!$B$2) -> 12
A15: [7-1] | B15: =ROW()-ROW(班名!$B$2) -> 13
A16: [7-2] | B16: =ROW()-ROW(班名!$B$2) -> 14
A17: [7-3] | B17: =ROW()-ROW(班名!$B$2) -> 15
A18: [8-1] | B18: =ROW()-ROW(班名!$B$2) -> 16
A19: [8-2] | B19: =ROW()-ROW(班名!$B$2) -> 17
A20: [9] | B20: =ROW()-ROW(班名!$B$2) -> 18
A21: [10] | B21: =ROW()-ROW(班名!$B$2) -> 19
A22: [11] | B22: =ROW()-ROW(班名!$B$2) -> 20
A23: [12] | B23: =ROW()-ROW(班名!$B$2) -> 21

Sheet 年号
D1: ※年号SORTは変更後の状態で自動採番します。
A2: 和暦 | B2: 西暦 | C2: 年号SORT
A3: 令和5 | B3: 2023 | C3: =ROW()-ROW(年号テーブル[[#Headers],[年号SORT]]) -> 1
A4: 令和4 | B4: 2022 | C4: =ROW()-ROW(年号テーブル[[#Headers],[年号SORT]]) -> 2
A5: 令和5 | B5: 2023 | C5: =ROW()-ROW(年号テーブル[[#Headers],[年号SORT]]) -> 3
A6: 令和4 | B6: 2022 | C6: =ROW()-ROW(年号テーブル[[#Headers],[年号SORT]]) -> 4
A7: 令和3 | B7: 2021 | C7: =ROW()-ROW(年号テーブル[[#Headers],[年号SORT]]) -> 5
A8: 令和2 | B8: 2020 | C8: =ROW()-ROW(年号テーブル[[#Headers],[年号SORT]]) -> 6
A9: 令和1 | B9: 2019 | C9: =ROW()-ROW(年号テーブル[[#Headers],[年号SORT]]) -> 7
A10: 平成31 | B10: 2019 | C10: =ROW()-ROW(年号テーブル[[#Headers],[年号SORT]]) -> 8
A11: 平成30 | B11: 2018 | C11: =ROW()-ROW(年号テーブル[[#Headers],[年号SORT]]) -> 9
A12: 平成29 | B12: 2017 | C12: =ROW()-ROW(年号テーブル[[#Headers],[年号SORT]]) -> 10
A13: 平成28 | B13: 2016 | C13: =ROW()-ROW(年号テーブル[[#Headers],[年号SORT]]) -> 11
A14: 平成27 | B14: 2015 | C14: =ROW()-ROW(年号テーブル[[#Headers],[年号SORT]]) -> 12
A15: 平成26 | B15: 2014 | C15: =ROW()-ROW(年号テーブル[[#Headers],[年号SORT]]) -> 13
A16: 平成25 | B16: 2013 | C16: =ROW()-ROW(年号テーブル[[#Headers],[年号SORT]]) -> 14
A17: 平成24 | B17: 2012 | C17: =ROW()-ROW(年号テーブル[[#Headers],[年号SORT]]) -> 15
A18: 平成23 | B18: 2011 | C18: =ROW()-ROW(年号テーブル[[#Headers],[年号SORT]]) -> 16
A19: 平成22 | B19: 2010 | C19: =ROW()-ROW(年号テーブル[[#Headers],[年号SORT]]) -> 17
A20: 平成21 | B20: 2009 | C20: =ROW()-ROW(年号テーブル[[#Headers],[年号SORT]]) -> 18
A21: 平成20 | B21: 2008 | C21: =ROW()-ROW(年号テーブル[[#Headers],[年号SORT]]) -> 19
A22: 平成19 | B22: 2007 | C22: =ROW()-ROW(年号テーブル[[#Headers],[年号SORT]]) -> 20
A23: 平成18 | B23: 2006 | C23: =ROW()-ROW(年号テーブル[[#Headers],[年号SORT]]) -> 21
A24: 平成17 | B24: 2005 | C24: =ROW()-ROW(年号テーブル[[#Headers],[年号SORT]]) -> 22
A25: 平成16 | B25: 2004 | C25: =ROW()-ROW(年号テーブル[[#Headers],[年号SORT]]) -> 23
A26: 平成15 | B26: 2003 | C26: =ROW()-ROW(年号テーブル[[#Headers],[年号SORT]]) -> 24
A27: 平成14 | B27: 2002 | C27: =ROW()-ROW(年号テーブル[[#Headers],[年号SORT]]) -> 25
A28: 平成13 | B28: 2001 | C28: =ROW()-ROW(年号テーブル[[#Headers],[年号SORT]]) -> 26
A29: 平成12 | B29: 2000 | C29: =ROW()-ROW(年号テーブル[[#Headers],[年号SORT]]) -> 27
A30: 平成11 | B30: 1999 | C30: =ROW()-ROW(年号テーブル[[#Headers],[年号SORT]]) -> 28
A31: 平成10 | B31: 1998 | C31: =ROW()-ROW(年号テーブル[[#Headers],[年号SORT]]) -> 29
A32: 平成9 | B32: 1997 | C32: =ROW()-ROW(年号テーブル[[#Headers],[年号SORT]]) -> 30
A33: 平成8 | B33: 1996 | C33: =ROW()-ROW(年号テーブル[[#Headers],[年号SORT]]) -> 31
A34: 平成7 | B34: 1995 | C34: =ROW()-ROW(年号テーブル[[#Headers],[年号SORT]]) -> 32
A35: 平成6 | B35: 1994 | C35: =ROW()-ROW(年号テーブル[[#Headers],[年号SORT]]) -> 33
A36: 平成5 | B36: 1993 | C36: =ROW()-ROW(年号テーブル[[#Headers],[年号SORT]]) -> 34
A37: 平成4 | B37: 1992 | C37: =ROW()-ROW(年号テーブル[[#Headers],[年号SORT]]) -> 35
A38: 平成3 | B38: 1991 | C38: =ROW()-ROW(年号テーブル[[#Headers],[年号SORT]]) -> 36
A39: 平成2 | B39: 1990 | C39: =ROW()-ROW(年号テーブル[[#Headers],[年号SORT]]) -> 37
A40: 平成1 | B40: 1989 | C40: =ROW()-ROW(年号テーブル[[#Headers],[年号SORT]]) -> 38
A41: 昭和64 | B41: 1989 | C41: =ROW()-ROW(年号テーブル[[#Headers],[年号SORT]]) -> 39
A42: 昭和63 | B42: 1988 | C42: =ROW()-ROW(年号テーブル[[#Headers],[年号SORT]]) -> 40
A43: 昭和62 | B43: 1987 | C43: =ROW()-ROW(年号テーブル[[#Headers],[年号SORT]]) -> 41
A44: 昭和61 | B44: 1986 | C44: =ROW()-ROW(年号テーブル[[#Headers],[年号SORT]]) -> 42
A45: 昭和60 | B45: 1985 | C45: =ROW()-ROW(年号テーブル[[#Headers],[年号SORT]]) -> 43
A46: 昭和59 | B46: 1984 | C46: =ROW()-ROW(年号テーブル[[#Headers],[年号SORT]]) -> 44
A47: 昭和58 | B47: 1983 | C47: =ROW()-ROW(年号テーブル[[#Headers],[年号SORT]]) -> 45
A48: 昭和57 | B48: 1982 | C48: =ROW()-ROW(年号テーブル[[#Headers],[年号SORT]]) -> 46
A49: 昭和56 | B49: 1981 | C49: =ROW()-ROW(年号テーブル[[#Headers],[年号SORT]]) -> 47
A50: 昭和55 | B50: 1980 | C50: =ROW()-ROW(年号テーブル[[#Headers],[年号SORT]]) -> 48
A51: 昭和54 | B51: 1979 | C51: =ROW()-ROW(年号テーブル[[#Headers],[年号SORT]]) -> 49
A52: 昭和53 | B52: 1978 | C52: =ROW()-ROW(年号テーブル[[#Headers],[年号SORT]]) -> 50
A53: 昭和52 | B53: 1977 | C53: =ROW()-ROW(年号テーブル[[#Headers],[年号SORT]]) -> 51
A54: 昭和51 | B54: 1976 | C54: =ROW()-ROW(年号テーブル[[#Headers],[年号SORT]]) -> 52
A55: 昭和50 | B55: 1975 | C55: =ROW()-ROW(年号テーブル[[#Headers],[年号SORT]]) -> 53
A56: 昭和49 | B56: 1974 | C56: =ROW()-ROW(年号テーブル[[#Headers],[年号SORT]]) -> 54
A57: 昭和48 | B57: 1973 | C57: =ROW()-ROW(年号テーブル[[#Headers],[年号SORT]]) -> 55
A58: 昭和47 | B58: 1972 | C58: =ROW()-ROW(年号テーブル[[#Headers],[年号SORT]]) -> 56
A59: 昭和46 | B59: 1971 | C59: =ROW()-ROW(年号テーブル[[#Headers],[年号SORT]]) -> 57
A60: 昭和45 | B60: 1970 | C60: =ROW()-ROW(年号テーブル[[#Headers],[年号SORT]]) -> 58
A61: 昭和44 | B61: 1969 | C61: =ROW()-ROW(年号テーブル[[#Headers],[年号SORT]]) -> 59
A62: 昭和43 | B62: 1968 | C62: =ROW()-ROW(年号テーブル[[#Headers],[年号SORT]]) -> 60
A63: 昭和42 | B63: 1967 | C63: =ROW()-ROW(年号テーブル[[#Headers],[年号SORT]]) -> 61
A64: 昭和41 | B64: 1966 | C64: =ROW()-ROW(年号テーブル[[#Headers],[年号SORT]]) -> 62
A65: 昭和40 | B65: 1965 | C65: =ROW()-ROW(年号テーブル[[#Headers],[年号SORT]]) -> 63
A66: 昭和39 | B66: 1964 | C66: =ROW()-ROW(年号テーブル[[#Headers],[年号SORT]]) -> 64
A67: 昭和38 | B67: 1963 | C67: =ROW()-ROW(年号テーブル[[#Headers],[年号SORT]]) -> 65
A68: 昭和37 | B68: 1962 | C68: =ROW()-ROW(年号テーブル[[#Headers],[年号SORT]]) -> 66
A69: 昭和36 | B69: 1961 | C69: =ROW()-ROW(年号テーブル[[#Headers],[年号SORT]]) -> 67
A70: 昭和35 | B70: 1960 | C70: =ROW()-ROW(年号テーブル[[#Headers],[年号SORT]]) -> 68
A71: 昭和34 | B71: 1959 | C71: =ROW()-ROW(年号テーブル[[#Headers],[年号SORT]]) -> 69
A72: 昭和33 | B72: 1958 | C72: =ROW()-ROW(年号テーブル[[#Headers],[年号SORT]]) -> 70
A73: 昭和32 | B73: 1957 | C73: =ROW()-ROW(年号テーブル[[#Headers],[年号SORT]]) -> 71
A74: 昭和31 | B74: 1956 | C74: =ROW()-ROW(年号テーブル[[#Headers],[年号SORT]]) -> 72
A75: 昭和30 | B75: 1955 | C75: =ROW()-ROW(年号テーブル[[#Headers],[年号SORT]]) -> 73
A76: 昭和29 | B76: 1954 | C76: =ROW()-ROW(年号テーブル[[#Headers],[年号SORT]]) -> 74
A77: 昭和28 | B77: 1953 | C77: =ROW()-ROW(年号テーブル[[#Headers],[年号SORT]]) -> 75
A78: 昭和27 | B78: 1952 | C78: =ROW()-ROW(年号テーブル[[#Headers],[年号SORT]]) -> 76
A79: 昭和26 | B79: 1951 | C79: =ROW()-ROW(年号テーブル[[#Headers],[年号SORT]]) -> 77
A80: 昭和25 | B80: 1950 | C80: =ROW()-ROW(年号テーブル[[#Headers],[年号SORT]]) -> 78
A81: 昭和24 | B81: 1949 | C81: =ROW()-ROW(年号テーブル[[#Headers],[年号SORT]]) -> 79
A82: 昭和23 | B82: 1948 | C82: =ROW()-ROW(年号テーブル[[#Headers],[年号SORT]]) -> 80
A83: 昭和22 | B83: 1947 | C83: =ROW()-ROW(年号テーブル[[#Headers],[年号SORT]]) -> 81
A84: 昭和21 | B84: 1946 | C84: =ROW()-ROW(年号テーブル[[#Headers],[年号SORT]]) -> 82
A85: 昭和20 | B85: 1945 | C85: =ROW()-ROW(年号テーブル[[#Headers],[年号SORT]]) -> 83
A86: 昭和19 | B86: 1944 | C86: =ROW()-ROW(年号テーブル[[#Headers],[年号SORT]]) -> 84
A87: 昭和18 | B87: 1943 | C87: =ROW()-ROW(年号テーブル[[#Headers],[年号SORT]]) -> 85
A88: 昭和17 | B88: 1942 | C88: =ROW()-ROW(年号テーブル[[#Headers],[年号SORT]]) -> 86
A89: 昭和16 | B89: 1941 | C89: =ROW()-ROW(年号テーブル[[#Headers],[年号SORT]]) -> 87
A90: 昭和15 | B90: 1940 | C90: =ROW()-ROW(年号テーブル[[#Headers],[年号SORT]]) -> 88
A91: 昭和14 | B91: 1939 | C91: =ROW()-ROW(年号テーブル[[#Headers],[年号SORT]]) -> 89
A92: 昭和13 | B92: 1938 | C92: =ROW()-ROW(年号テーブル[[#Headers],[年号SORT]]) -> 90
A93: 昭和12 | B93: 1937 | C93: =ROW()-ROW(年号テーブル[[#Headers],[年号SORT]]) -> 91
A94: 昭和11 | B94: 1936 | C94: =ROW()-ROW(年号テーブル[[#Headers],[年号SORT]]) -> 92
A95: 昭和10 | B95: 1935 | C95: =ROW()-ROW(年号テーブル[[#Headers],[年号SORT]]) -> 93
A96: 昭和9 | B96: 1934 | C96: =ROW()-ROW(年号テーブル[[#Headers],[年号SORT]]) -> 94
A97: 昭和8 | B97: 1933 | C97: =ROW()-ROW(年号テーブル[[#Headers],[年号SORT]]) -> 95
A98: 昭和7 | B98: 1932 | C98: =ROW()-ROW(年号テーブル[[#Headers],[年号SORT]]) -> 96
A99: 昭和6 | B99: 1931 | C99: =ROW()-ROW(年号テーブル[[#Headers],[年号SORT]]) -> 97
A100: 昭和5 | B100: 1930 | C100: =ROW()-ROW(年号テーブル[[#Headers],[年号SORT]]) -> 98
A101: 昭和4 | B101: 1929 | C101: =ROW()-ROW(年号テーブル[[#Headers],[年号SORT]]) -> 99
A102: 昭和3 | B102: 1928 | C102: =ROW()-ROW(年号テーブル[[#Headers],[年号SORT]]) -> 100
A103: 昭和2 | B103: 1927 | C103: =ROW()-ROW(年号テーブル[[#Headers],[年号SORT]]) -> 101
A104: 昭和1 | B104: 1926 | C104: =ROW()-ROW(年号テーブル[[#Headers],[年号SORT]]) -> 102
A105: 大正15 | B105: 1926 | C105: =ROW()-ROW(年号テーブル[[#Headers],[年号SORT]]) -> 103
A106: 大正14 | B106: 1925 | C106: =ROW()-ROW(年号テーブル[[#Headers],[年号SORT]]) -> 104
A107: 大正13 | B107: 1924 | C107: =ROW()-ROW(年号テーブル[[#Headers],[年号SORT]]) -> 105
A108: 大正12 | B108: 1923 | C108: =ROW()-ROW(年号テーブル[[#Headers],[年号SORT]]) -> 106
A109: 大正11 | B109: 1922 | C109: =ROW()-ROW(年号テーブル[[#Headers],[年号SORT]]) -> 107
A110: 大正10 | B110: 1921 | C110: =ROW()-ROW(年号テーブル[[#Headers],[年号SORT]]) -> 108
A111: 大正9 | B111: 1920 | C111: =ROW()-ROW(年号テーブル[[#Headers],[年号SORT]]) -> 109
A112: 大正8 | B112: 1919 | C112: =ROW()-ROW(年号テーブル[[#Headers],[年号SORT]]) -> 110
A113: 大正7 | B113: 1918 | C113: =ROW()-ROW(年号テーブル[[#Headers],[年号SORT]]) -> 111
A114: 大正6 | B114: 1917 | C114: =ROW()-ROW(年号テーブル[[#Headers],[年号SORT]]) -> 112
A115: 大正5 | B115: 1916 | C115: =ROW()-ROW(年号テーブル[[#Headers],[年号SORT]]) -> 113
A116: 大正4 | B116: 1915 | C116: =ROW()-ROW(年号テーブル[[#Headers],[年号SORT]]) -> 114
A117: 大正3 | B117: 1914 | C117: =ROW()-ROW(年号テーブル[[#Headers],[年号SORT]]) -> 115
A118: 大正2 | B118: 1913 | C118: =ROW()-ROW(年号テーブル[[#Headers],[年号SORT]]) -> 116
A119: 大正1 | B119: 1912 | C119: =ROW()-ROW(年号テーブル[[#Headers],[年号SORT]]) -> 117
A120: 明治45 | B120: 1912 | C120: =ROW()-ROW(年号テーブル[[#Headers],[年号SORT]]) -> 118
A121: 大化1 | B121: 645 | C121: =ROW()-ROW(年号テーブル[[#Headers],[年号SORT]]) -> 119

Sheet 役職
G1: ※役職SORTは変更後の状態で自動採番します。
A2: 役職名 | B2: 任期 | C2: 委員会 | D2: 委嘱業務 | E2: 備考 | F2: 役職SORT
A3: 自治会長 | B3: 1年 | C3: 出 | F3: =ROW()-ROW(役職テーブル[[#Headers],[役職SORT]]) -> 1
A4: 自治会副会長(会計) | B4: 1年 | C4: 出 | F4: =ROW()-ROW(役職テーブル[[#Headers],[役職SORT]]) -> 2
A5: 自治会副会長(書記) | B5: 1年 | C5: 出 | F5: =ROW()-ROW(役職テーブル[[#Headers],[役職SORT]]) -> 3
A6: 班長 | B6: 1年 | F6: =ROW()-ROW(役職テーブル[[#Headers],[役職SORT]]) -> 4
A7: ブロック長 | B7: 1年 | C7: 出 | F7: =ROW()-ROW(役職テーブル[[#Headers],[役職SORT]]) -> 5
A8: 諮問委員(自治会長OB) | B8: 5年 | C8: 出 | F8: =ROW()-ROW(役職テーブル[[#Headers],[役職SORT]]) -> 6
A9: 諮問委員(地域) | B9: 2年 | C9: 出 | F9: =ROW()-ROW(役職テーブル[[#Headers],[役職SORT]]) -> 7
A10: 代議委員 | B10: 2年 | F10: =ROW()-ROW(役職テーブル[[#Headers],[役職SORT]]) -> 8
A11: 敬老会会長 | B11: 2年 | F11: =ROW()-ROW(役職テーブル[[#Headers],[役職SORT]]) -> 9
A12: 敬老会副会長(会計) | B12: 2年 | F12: =ROW()-ROW(役職テーブル[[#Headers],[役職SORT]]) -> 10
A13: 敬老会副会長(書記) | B13: 2年 | F13: =ROW()-ROW(役職テーブル[[#Headers],[役職SORT]]) -> 11
A14: 育成会会長 | F14: =ROW()-ROW(役職テーブル[[#Headers],[役職SORT]]) -> 12
A15: 育成会副会長 | F15: =ROW()-ROW(役職テーブル[[#Headers],[役職SORT]]) -> 13
A16: 育成会実行委員長 | B16: 1年 | F16: =ROW()-ROW(役職テーブル[[#Headers],[役職SORT]]) -> 14
A17: 育成会副実行委員長(会計) | B17: 1年 | F17: =ROW()-ROW(役職テーブル[[#Headers],[役職SORT]]) -> 15
A18: 育成会副実行委員長(書記) | B18: 1年 | F18: =ROW()-ROW(役職テーブル[[#Headers],[役職SORT]]) -> 16
A19: 女性部会長 | B19: 1年 | F19: =ROW()-ROW(役職テーブル[[#Headers],[役職SORT]]) -> 17
A20: 女性部会計 | B20: 1年 | F20: =ROW()-ROW(役職テーブル[[#Headers],[役職SORT]]) -> 18
A21: 女性部書記 | B21: 1年 | F21: =ROW()-ROW(役職テーブル[[#Headers],[役職SORT]]) -> 19
A22: 子供会会長 | F22: =ROW()-ROW(役職テーブル[[#Headers],[役職SORT]]) -> 20
A23: 子供会副会長 | F23: =ROW()-ROW(役職テーブル[[#Headers],[役職SORT]]) -> 21
A24: 子供会会計 | F24: =ROW()-ROW(役職テーブル[[#Headers],[役職SORT]]) -> 22
A25: 青年団会長 | F25: =ROW()-ROW(役職テーブル[[#Headers],[役職SORT]]) -> 23
A26: 青年団副会長 | F26: =ROW()-ROW(役職テーブル[[#Headers],[役職SORT]]) -> 24
A27: 青年団会計 | F27: =ROW()-ROW(役職テーブル[[#Headers],[役職SORT]]) -> 25
A28: 選挙管理委員会委員長 | B28: 1年 | D28: 自治会委嘱 | F28: =ROW()-ROW(役職テーブル[[#Headers],[役職SORT]]) -> 26
A29: 民生委員 | B29: 3年 | D29: 市任命 | F29: =ROW()-ROW(役職テーブル[[#Headers],[役職SORT]]) -> 27
A30: 地域安全推進委員 | D30: 警察委嘱 | F30: =ROW()-ROW(役職テーブル[[#Headers],[役職SORT]]) -> 28
A31: 交通指導員 | D31: 市委託 | F31: =ROW()-ROW(役職テーブル[[#Headers],[役職SORT]]) -> 29
A32: 環境美化推進委員長 | B32: 1年 | D32: 市委託 | F32: =ROW()-ROW(役職テーブル[[#Headers],[役職SORT]]) -> 30
A33: 環境美化推進委員 | B33: 1年 | D33: 市委託 | F33: =ROW()-ROW(役職テーブル[[#Headers],[役職SORT]]) -> 31
A34: 暴力追放推進委員 | B34: 3年 | D34: 市長委嘱 | F34: =ROW()-ROW(役職テーブル[[#Headers],[役職SORT]]) -> 32
A35: 自主防災隊長 | B35: 1年 | D35: 市長委嘱 | F35: =ROW()-ROW(役職テーブル[[#Headers],[役職SORT]]) -> 33
A36: 防災委員 | B36: 3年 | D36: 市長委嘱 | F36: =ROW()-ROW(役職テーブル[[#Headers],[役職SORT]]) -> 34
A37: 会計監査役 | B37: 1年 | D37: 自治会委嘱 | F37: =ROW()-ROW(役職テーブル[[#Headers],[役職SORT]]) -> 35
A38: 公民館管理委員長 | B38: 1年 | D38: 自治会委嘱 | F38: =ROW()-ROW(役職テーブル[[#Headers],[役職SORT]]) -> 36
A39: 公民館管理委員 | B39: 1年 | D39: 自治会委嘱 | F39: =ROW()-ROW(役職テーブル[[#Headers],[役職SORT]]) -> 37
A40: 防火管理者 | D40: 自治会委嘱 | F40: =ROW()-ROW(役職テーブル[[#Headers],[役職SORT]]) -> 38
A41: 防災副隊長 | D41: 自治会委嘱 | F41: =ROW()-ROW(役職テーブル[[#Headers],[役職SORT]]) -> 39
A42: 防災隊消火班 | B42: 2年 | F42: =ROW()-ROW(役職テーブル[[#Headers],[役職SORT]]) -> 40
A43: 防災隊救出救助班 | B43: 2年 | F43: =ROW()-ROW(役職テーブル[[#Headers],[役職SORT]]) -> 41
A44: 防災隊情報班 | B44: 2年 | F44: =ROW()-ROW(役職テーブル[[#Headers],[役職SORT]]) -> 42
A45: 防災隊避難誘導班 | B45: 2年 | F45: =ROW()-ROW(役職テーブル[[#Headers],[役職SORT]]) -> 43
A46: 防災隊生活班 | B46: 2年 | F46: =ROW()-ROW(役職テーブル[[#Headers],[役職SORT]]) -> 44
A47: 防災隊衛生救護班 | B47: 2年 | F47: =ROW()-ROW(役職テーブル[[#Headers],[役職SORT]]) -> 45
A48: 防災隊災害時要援護者班 | B48: 2年 | F48: =ROW()-ROW(役職テーブル[[#Headers],[役職SORT]]) -> 46
A49: 認可地縁団体代表者 | B49: 1年 | E49: 地方自治法 | F49: =ROW()-ROW(役職テーブル[[#Headers],[役職SORT]]) -> 47
